Workbook

Sheet Sheet1 (hidden)
A2: Row Labels | B2: 产品货号 | C2: PG DIS | D2: 2,017 | E2: 2,018 | F2: 目录价
A3: GE蛋白纯化凝胶产品 | B3: 19759501 | C3: O-RING, 27.1 X 1.60 NBR | D3: 4 | E3: 10 | F3: ¥234.23
A4: GE蛋白纯化凝胶产品 | B4: 19176701 | C4: SUPPORT SCREEN | E4: 9 | F4: ¥360.36
A5: Amersham 蛋白免疫印迹 | B5: 3030-861 | C5: 3MM CHR 20X20CM 100/PK | D5: 407 | E5: 570 | F5: ¥422.70
A6: Amersham 蛋白免疫印迹 | B6: 3030-6188 | C6: 3MM CHR 15X20CM 100/PK | E6: 20 | F6: ¥441.08
A7: GE蛋白纯化凝胶产品 | B7: 29051325 | C7: HITRAP Q HP, 1 X 1 ML | D7: 13 | E7: 13 | F7: ¥459.46
A8: GE蛋白纯化凝胶产品 | B8: 29051324 | C8: HITRAP SP HP, 1 X 1 ML | D8: 7 | E8: 9 | F8: ¥459.46
A9: GE蛋白纯化凝胶产品 | B9: 19016301 | C9: O-RING | D9: 8 | E9: 13 | F9: ¥486.49
A10: GE蛋白纯化凝胶产品 | B10: 18321603 | C10: LABMATE PD-10 BUFFER RESERVOIR | D10: 24 | E10: 18 | F10: ¥495.50
A11: 双向电泳系列产品 | B11: 17131901 | C11: UREA, 500 G | D11: 14 | E11: 15 | F11: ¥523.78
A12: GE蛋白纯化凝胶产品 | B12: 18102712 | C12: UNION LUERLOCK FEMALE/M6 FEMALE | D12: 7 | E12: 20 | F12: ¥531.53
A13: GE蛋白纯化凝胶产品 | B13: 29051021 | C13: HISTRAP HP 1 X 1 ML | D13: 38 | E13: 22 | F13: ¥549.55
A14: Biacore | B14: BR100287 | C14: Plastic Vials 1.5 ml | D14: 48 | E14: 25 | F14: ¥603.60
A15: GE蛋白纯化凝胶产品 | B15: 19199350 | C15: TUBING CONNECTOR/M6 MALE | D15: 5 | E15: 13 | F15: ¥612.61
A16: GE蛋白纯化凝胶产品 | B16: 19500801 | C16: NET RING 10 MICROMETER | E16: 9 | F16: ¥612.61
A17: GE蛋白纯化凝胶产品 | B17: 29048586 | C17: HisTrap excel 1x1ml | D17: 22 | E17: 12 | F17: ¥621.62
A18: GE蛋白纯化凝胶产品 | B18: 18876101 | C18: NET RING XK 16(10UM), PKG/5 | D18: 8 | E18: 13 | F18: ¥630.63
A19: GE蛋白纯化凝胶产品 | B19: 18111368 | C19: PEEK TUBING, 2M/ID 0,5/OD 1/16 | D19: 6 | E19: 10 | F19: ¥630.63
A20: GE蛋白纯化凝胶产品 | B20: 18111583 | C20: #N/A | D20: 17 | E20: 22 | F20: ¥639.64
A21: 双向电泳系列产品 | B21: 17600088 | C21: IPG-BUFFER, PH 3-10NL | D21: 33 | E21: 21 | F21: ¥643.24
A22: 双向电泳系列产品 | B22: 17600086 | C22: IPG-BUFFER, PH 4-7L | D22: 22 | E22: 16 | F22: ¥643.24
A23: 双向电泳系列产品 | B23: 17600087 | C23: IPG-BUFFER, PH 3-10L | D23: 28 | E23: 14 | F23: ¥643.24
A24: Amersham 蛋白免疫印迹 | B24: 10499001 | C24: MEMBRANE MARKING PEN 10/PK | D24: 1 | E24: 12 | F24: ¥680.27
A25: GE蛋白纯化凝胶产品 | B25: 18111974 | C25: ETFE TUBING,2M/ID0.75/OD1/17 | D25: 5 | E25: 16 | F25: ¥684.68
A26: GE蛋白纯化凝胶产品 | B26: 17044003 | C26: CON-A SEPHAROSE 4B 5 ML | D26: 22 | E26: 23 | F26: ¥774.77
A27: GE蛋白纯化凝胶产品 | B27: 18111253 | C27: PEEK TUBING ID 0,75MM (1/16in) | D27: 24 | E27: 19 | F27: ¥774.77
A28: 双向电泳系列产品 | B28: 17133501 | C28: DRYSTRIP COVER FLUID, 1000 ML | D28: 20 | E28: 24 | F28: ¥781.08
A29: GE蛋白纯化凝胶产品 | B29: 17070910 | C29: DEAE SEPHAROSE FAST FLOW, 25 ML | D29: 106 | E29: 66 | F29: ¥801.80
A30: GE蛋白纯化凝胶产品 | B30: 17051010 | C30: Q SEPHAROSE FAST FLOW, 25 ML | D30: 62 | E30: 29 | F30: ¥801.80
A31: GE蛋白纯化凝胶产品 | B31: 17072910 | C31: SP SEPHAROSE FAST FLOW, 25 ML | D31: 39 | E31: 20 | F31: ¥801.80
A32: GE蛋白纯化凝胶产品 | B32: 17071910 | C32: CM SEPHAROSE FAST FLOW, 25 ML | D32: 43 | E32: 19 | F32: ¥801.80
A33: GE蛋白纯化凝胶产品 | B33: 29048684 | C33: HITRAP DESALTING, 1X5ML | D33: 57 | E33: 34 | F33: ¥810.81
A34: GE蛋白纯化凝胶产品 | B34: 17531806 | C34: NI SEPHAROSE 6 FF 5 ML | D34: 172 | E34: 90 | F34: ¥837.84
A35: GE蛋白纯化凝胶产品 | B35: 11000464 | C35: STOP PLUG FEMALE, 1/16 IN | D35: 1 | E35: 47 | F35: ¥837.84
A36: 双向电泳系列产品 | B36: 17131401 | C36: CHAPS 1 G | D36: 16 | E36: 36 | F36: ¥863.78
A37: GE蛋白纯化凝胶产品 | B37: 28401081 | C37: HITRAP_HIPREP 1_16 CONNEC AKTA | D37: 12 | E37: 26 | F37: ¥873.87
A38: Biacore | B38: BR100188 | C38: HBS-EP Buffer,ready-to-use | D38: 39 | E38: 70 | F38: ¥936.94
A39: 电泳 | B39: 17132101 | C39: TRIS, 500 G | D39: 18 | E39: 9 | F39: ¥937.30
A40: GE蛋白纯化凝胶产品 | B40: 28932225 | C40: Vivaspin 500, 10 kDa MWCO PES | D40: 19 | E40: 17 | F40: ¥954.95
A41: GE蛋白纯化凝胶产品 | B41: 28932237 | C41: Vivaspin 500, 100 kDa MWCO PES | D41: 12 | E41: 10 | F41: ¥954.95
A42: GE蛋白纯化凝胶产品 | B42: 18111257 | C42: #N/A | D42: 26 | E42: 55 | F42: ¥972.97
A43: Biacore | B43: BR100354 | C43: Glycine 1.5 | D43: 90 | E43: 41 | F43: ¥972.97
A44: Biacore | B44: BR100357 | C44: Glycine 3.0 | D44: 13 | E44: 22 | F44: ¥972.97
A45: Biacore | B45: 28995043 | C45: NTA Reagent Kit | D45: 22 | E45: 15 | F45: ¥972.97
A46: Biacore | B46: BR100355 | C46: Glycine 2.0 | D46: 16 | E46: 13 | F46: ¥972.97
A47: Biacore | B47: BR100356 | C47: Glycine 2.5 | D47: 15 | E47: 10 | F47: ¥972.97
A48: Amersham 蛋白免疫印迹 | B48: 10426981 | C48: GB005 200x200MM 25/PK | D48: 92 | E48: 49 | F48: ¥990.99
A49: GE蛋白纯化凝胶产品 | B49: 18111255 | C49: FINGERTIGHT CONNECTOR 1/16in | D49: 10 | E49: 34 | F49: ¥1,009.01
A50: Biacore | B50: BR100351 | C50: Acetate 5.0 | D50: 29 | E50: 32 | F50: ¥1,009.01
A51: Biacore | B51: BR100350 | C51: Acetate 4.5 | D51: 15 | E51: 19 | F51: ¥1,009.01
A52: Biacore | B52: BR100352 | C52: Acetate 5.5 | D52: 13 | E52: 18 | F52: ¥1,009.01
A53: Biacore | B53: BR100349 | C53: Acetate 4.0 | D53: 15 | E53: 17 | F53: ¥1,009.01
A54: GE蛋白纯化凝胶产品 | B54: 18111258 | C54: #N/A | D54: 14 | E54: 13 | F54: ¥1,018.02
A55: GE蛋白纯化凝胶产品 | B55: 18112094 | C55: ON-LINE FILTER (10 ML/MIN) | D55: 41 | E55: 16 | F55: ¥1,036.04
A56: Biacore | B56: BR100826 | C56: HBS-EP+ buffer 10X 4x50ml | D56: 204 | E56: 97 | F56: ¥1,054.05
A57: Biacore | B57: BR100358 | C57: NaOH 50 | D57: 19 | E57: 26 | F57: ¥1,072.07
A58: GE蛋白纯化凝胶产品 | B58: 18115344 | C58: PACKING CONNECTOR XK 16 | D58: 9 | E58: 12 | F58: ¥1,090.09
A59: 电泳 | B59: 80112946 | C59: IEF SAMPLE APPL PIECES (PKG/200) | D59: 7 | E59: 11 | F59: ¥1,116.22
A60: GE蛋白纯化凝胶产品 | B60: 18102711 | C60: ONLINE FILTER KIT, PKG/10(100 ML/MIN AKTA SYSTEMS) | D60: 76 | E60: 47 | F60: ¥1,162.16
A61: 双向电泳系列产品 | B61: 17600111 | C61: IMMOBILINE DRYSTRIP PH3-10,7CM | D61: 127 | E61: 35 | F61: ¥1,194.59
A62: 双向电泳系列产品 | B62: 17600110 | C62: IMMOBILINE DRYSTRIP PH 4-7,7CM | D62: 7 | E62: 28 | F62: ¥1,194.59
A63: 双向电泳系列产品 | B63: RPN6302 | C63: IODOACETAMIDE 25GM. | D63: 11 | E63: 13 | F63: ¥1,203.78
A64: Biacore | B64: BR100502 | C64: Rubber caps, type 3 | D64: 28 | E64: 18 | F64: ¥1,225.22
A65: GE蛋白纯化凝胶产品 | B65: 28932360 | C65: Vivaspin 20, 10 kDa MWCO PES | D65: 50 | E65: 23 | F65: ¥1,234.23
A66: GE蛋白纯化凝胶产品 | B66: 28932363 | C66: Vivaspin 20, 100 kDa MWCO PES | D66: 52 | E66: 13 | F66: ¥1,234.23
A67: GE蛋白纯化凝胶产品 | B67: 28932361 | C67: Vivaspin 20, 30 kDa MWCO PES | D67: 17 | E67: 12 | F67: ¥1,234.23
A68: 电泳 | B68: 17133201 | C68: REPEL-SILANE ES, 500 ML | D68: 34 | E68: 35 | F68: ¥1,240.54
A69: Amersham 蛋白免疫印迹 | B69: RPN2109 | C69: ECL BLOTTING REAGENTS | D69: 17 | E69: 10 | F69: ¥1,286.49
A70: GE蛋白纯化凝胶产品 | B70: 28932296 | C70: Vivaspin 6, 10 kDa MWCO PES | D70: 35 | E70: 12 | F70: ¥1,315.31
A71: GE核酸分子生物学产品 | B71: 17085301 | C71: NAP-5 20 ST | D71: 81 | E71: 48 | F71: ¥1,335.04
A72: 磁珠 | B72: 28967388 | C72: His Mag Sepharose Ni 2x1 ml | E72: 9 | F72: ¥1,341.62
A73: GE蛋白纯化凝胶产品 | B73: 11000407 | C73: INLET FILTER HOLDER KIT (AKTA) | D73: 32 | E73: 25 | F73: ¥1,351.35
A74: Biacore | B74: BR100503 | C74: Microplate, 96 well | D74: 21 | E74: 10 | F74: ¥1,360.36
A75: 电泳 | B75: 17133001 | C75: BIND-SILANE, 25 ML | D75: 7 | E75: 12 | F75: ¥1,424.32
A76: 电泳 | B76: 17054301 | C76: PHASTGEL IEF 3-9 | D76: 50 | E76: 21 | F76: ¥1,447.30
A77: Biacore | B77: BR100666 | C77: BIAmaintenance Kit | D77: 13 | E77: 15 | F77: ¥1,450.45
A78: GE核酸分子生物学产品 | B78: 17085401 | C78: NAP-10 20 ST | D78: 8 | E78: 13 | F78: ¥1,463.06
A79: 双向电泳系列产品 | B79: 17123501 | C79: IMMOBILINE DRYSTRIP PH 3-10 NL,18CM | D79: 40 | E79: 69 | F79: ¥1,497.84
A80: 双向电泳系列产品 | B80: 17123301 | C80: IMMOBILINE DRYSTRIP PH 4-7, 18CM | D80: 27 | E80: 21 | F80: ¥1,497.84
A81: 双向电泳系列产品 | B81: 17600115 | C81: IMMOBILINE DRYSTRIP PH3-10NL, 13CM | D81: 50 | E81: 19 | F81: ¥1,497.84
A82: 双向电泳系列产品 | B82: 17600114 | C82: IMMOBILINE DRYSTRIPPH3-10,13CM | D82: 21 | E82: 11 | F82: ¥1,497.84
A83: 双向电泳系列产品 | B83: 17123401 | C83: IMMOBILINE DRYSTRIP PH 3-10 L, 18CM | D83: 6 | E83: 10 | F83: ¥1,497.84
A84: GE蛋白纯化凝胶产品 | B84: 29053612 | C84: TRICORN 10 Filter Kit | D84: 51 | E84: 30 | F84: ¥1,594.59
A85: GE蛋白纯化凝胶产品 | B85: 29048576 | C85: HITRAP PROTEIN A HP, 1 X 1 ML | D85: 11 | E85: 9 | F85: ¥1,621.62
A86: Biacore | B86: BR100672 | C86: PBS 10 x | D86: 3 | E86: 21 | F86: ¥1,630.63
A87: GE蛋白纯化凝胶产品 | B87: 17547015 | C87: HiScreen Capto Q ImpRes | D87: 1 | E87: 10 | F87: ¥1,639.64
A88: Biacore | B88: 28995084 | C88: PBS-P+ 10X | D88: 19 | E88: 32 | F88: ¥1,648.65
A89: GE蛋白纯化凝胶产品 | B89: 18111401 | C89: SAMPLE LOOP 1.0 ML, INV-907 | D89: 20 | E89: 16 | F89: ¥1,648.65
A90: GE蛋白纯化凝胶产品 | B90: 17505501 | C90: HITRAP DEAE FF 5 X 1 ML | D90: 20 | E90: 21 | F90: ¥1,666.67
A91: GE蛋白纯化凝胶产品 | B91: 17505301 | C91: HITRAP Q FF, 5 X 1 ML | D91: 26 | E91: 11 | F91: ¥1,666.67
A92: GE蛋白纯化凝胶产品 | B92: 28406407 | C92: TRICORN 10 COLUMN ADAPTOR UNIT | D92: 8 | E92: 13 | F92: ¥1,675.67
A93: GE蛋白纯化凝胶产品 | B93: 17524801 | C93: HISTRAP HP 1 X 5 ML | D93: 163 | E93: 106 | F93: ¥1,738.74
A94: GE蛋白纯化凝胶产品 | B94: 17115301 | C94: HITRAP Q HP, 5 X 1 ML | D94: 81 | E94: 50 | F94: ¥1,738.74
A95: GE蛋白纯化凝胶产品 | B95: 17115101 | C95: HITRAP SP HP, 5 X 1 ML | D95: 32 | E95: 30 | F95: ¥1,738.74
A96: 双向电泳系列产品 | B96: 17600246 | C96: IMM. DRYSTRIP PH 4-7, 24 CM | D96: 81 | E96: 85 | F96: ¥1,755.13
A97: 双向电泳系列产品 | B97: 17600245 | C97: IMM. DRYSTRIP PH 3-10 NL, 24CM | D97: 22 | E97: 16 | F97: ¥1,755.13
A98: GE核酸分子生物学产品 | B98: 25660030 | C98: GENOMIPHI V2 DNA AMP KIT 25RXN | D98: 8 | E98: 9 | F98: ¥1,777.48
A99: GE蛋白纯化凝胶产品 | B99: 17531901 | C99: HISTRAP FF 5 X 1 ML | D99: 116 | E99: 72 | F99: ¥1,792.79
A100: Biacore | B100: BR100209 | C100: Glass vials 16mm | D100: 10 | E100: 12 | F100: ¥1,801.80
A101: Biacore | B101: BR100212 | C101: Plastic vials 7mm | D101: 20 | E101: 23 | F101: ¥1,837.84
A102: GE蛋白纯化凝胶产品 | B102: 29048581 | C102: HITRAP PROTEIN G HP, 1 X 1 ML | D102: 15 | E102: 18 | F102: ¥1,846.85
A103: 细胞密度梯度分离介质 | B103: 17144002 | C103: FICOLL PAQUE PLUS 6X100 ML | D103: 1,095 | E103: 1,296 | F103: ¥1,864.86
A104: 磁珠 | B104: 28944006 | C104: Protein A Mag Sepharose 1x500ul | D104: 4 | E104: 9 | F104: ¥1,909.91
A105: 细胞密度梯度分离介质 | B105: 17544202 | C105: FICOLL PAQUE PREMIUM 6X100ML | D105: 385 | E105: 238 | F105: ¥1,954.95
A106: GE蛋白纯化凝胶产品 | B106: 11000458 | C106: HISTRAP FF CRUDE 5X1 ML | D106: 30 | E106: 24 | F106: ¥1,963.96
A107: GE核酸分子生物学产品 | B107: 27532501 | C107: MICROSPIN G-25 COLUMNS | D107: 39 | E107: 50 | F107: ¥1,981.98
A108: GE核酸分子生物学产品 | B108: 27533001 | C108: MICROSPIN G-50 COLUMNS, 50 COLUMNS | D108: 33 | E108: 31 | F108: ¥1,981.98
A109: GE核酸分子生物学产品 | B109: 28903408 | C109: ProbeQuantTM G-50 Micro Col,50 | D109: 19 | E109: 15 | F109: ¥1,981.98
A110: GE蛋白纯化凝胶产品 | B110: 17548115 | C110: HiScreen Capto Core 700 | D110: 10 | E110: 19 | F110: ¥1,990.99
A111: GE蛋白纯化凝胶产品 | B111: 17071601 | C111: HITRAP NHS-ACTIV HP, 5 X 1ML | D111: 19 | E111: 13 | F111: ¥2,000.00
A112: 细胞密度梯度分离介质 | B112: 17089102 | C112: PERCOLL 250ML | D112: 223 | E112: 154 | F112: ¥2,045.04
A113: GE蛋白纯化凝胶产品 | B113: 17524701 | C113: HISTRAP HP 5 X 1 ML | D113: 201 | E113: 123 | F113: ¥2,045.04
A114: GE蛋白纯化凝胶产品 | B114: 17040701 | C114: HITRAP HEPARIN HP,1 X 5 ML | D114: 66 | E114: 62 | F114: ¥2,054.05
A115: Biacore | B115: BR100054 | C115: Surfactant P20 | D115: 46 | E115: 52 | F115: ¥2,054.05
A116: 磁珠 | B116: 30152105011150 | C116: Sera-Mag Streptavidin, 1mL | D116: 2 | E116: 34 | F116: ¥2,054.05
A117: GE蛋白纯化凝胶产品 | B117: 17058410 | C117: SEPHACRYL S-200 HR, 150 ML | D117: 35 | E117: 21 | F117: ¥2,117.12
A118: GE蛋白纯化凝胶产品 | B118: 17059910 | C118: SEPHACRYL S-300 HR, 150 ML | D118: 29 | E118: 17 | F118: ¥2,117.12
A119: GE蛋白纯化凝胶产品 | B119: 17061210 | C119: SEPHACRYL S-100 HR, 150 ML | D119: 32 | E119: 15 | F119: ¥2,117.12
A120: GE蛋白纯化凝胶产品 | B120: 17060910 | C120: SEPHACRYL S-400 HR, 150 ML | D120: 28 | E120: 11 | F120: ¥2,117.12
A121: GE核酸分子生物学产品 | B121: 10404092 | C121: ELUTRAP BT2 19X26MM 100/PK | D121: 10 | E121: 11 | F121: ¥2,117.12
A122: Biacore | B122: BR100399 | C122: Sensor Chip CM5 | D122: 23 | E122: 13 | F122: ¥2,126.12
A123: 电泳 | B123: 18100226 | C123: IEF/SDS SAMPLE APPL STRIP 52S(P/5 | D123: 25 | E123: 23 | F123: ¥2,135.13
A124: GE核酸分子生物学产品 | B124: 27411001 | C124: POLY (A) 100 MG | D124: 123 | E124: 55 | F124: ¥2,153.15
A125: GE蛋白纯化凝胶产品 | B125: 17043501 | C125: COLUMN PD-10,EMPTY | D125: 45 | E125: 48 | F125: ¥2,162.16
A126: Amersham 蛋白免疫印迹 | B126: 10600002 | C126: PT 0.45UM 300MMx4M 1/PK | D126: 824 | E126: 1,202 | F126: ¥2,171.17
A127: GE核酸分子生物学产品 | B127: 17085201 | C127: NAP-25 20 ST | D127: 33 | E127: 33 | F127: ¥2,171.17
A128: GE核酸分子生物学产品 | B128: 27514001 | C128: MICROSPIN S-400 HR, 50 COLUMNS | D128: 34 | E128: 17 | F128: ¥2,171.17
A129: GE蛋白纯化凝胶产品 | B129: 19500201 | C129: COLUMN C 10/20 | D129: 35 | E129: 14 | F129: ¥2,189.19
A130: Biacore | B130: BR100411 | C130: Rubber Cap type 2 | D130: 41 | E130: 54 | F130: ¥2,252.25
A131: GE蛋白纯化凝胶产品 | B131: 17040601 | C131: HITRAP HEPARIN HP, 5 X 1 ML | D131: 280 | E131: 188 | F131: ¥2,270.27
A132: Biacore | B132: 29104988 | C132: Series S Sensor Chip CM5-1-pack | D132: 14 | E132: 32 | F132: ¥2,315.31
A133: GE蛋白纯化凝胶产品 | B133: 17371205 | C133: HisTrap excel 5x1ml | D133: 38 | E133: 24 | F133: ¥2,387.39
A134: GE核酸分子生物学产品 | B134: 25640010 | C134: TEMPLIPHI 100AMPLIFICATION KIT | D134: 24 | E134: 19 | F134: ¥2,432.34
A135: Amersham 蛋白免疫印迹 | B135: 10600003 | C135: PTP 0.45UM 300MMx4M 1/PK | D135: 195 | E135: 204 | F135: ¥2,450.45
A136: 细胞密度梯度分离介质 | B136: 17544602 | C136: Ficoll-Paque PREMIUM 1,084 6X100ML | D136: 88 | E136: 61 | F136: ¥2,477.48
A137: 细胞密度梯度分离介质 | B137: 17544652 | C137: Ficoll-Paque PREMIUM 1,073 6X100ML | D137: 11 | E137: 18 | F137: ¥2,477.48
A138: GE蛋白纯化凝胶产品 | B138: 17090601 | C138: NHS ACT SEPHAROSE 4 FF 25 ML | D138: 52 | E138: 42 | F138: ¥2,513.51
A139: 电泳 | B139: 17044601 | C139: CALIBRATION KIT LMW FOR ELECTROPH. | D139: 52 | E139: 24 | F139: ¥2,513.51
A140: 电泳 | B140: 17044501 | C140: CALIBRATION KIT HMW FOR ELECTROPH. | D140: 24 | E140: 16 | F140: ¥2,513.51
A141: GE蛋白纯化凝胶产品 | B141: 18111402 | C141: SAMPLE LOOP 2.0 ML, INV-907 | D141: 17 | E141: 11 | F141: ¥2,522.52
A142: GE蛋白纯化凝胶产品 | B142: 17548101 | C142: Capto Core 700, 25 mL | D142: 7 | E142: 9 | F142: ¥2,522.52
A143: GE蛋白纯化凝胶产品 | B143: 28903134 | C143: Protein G HP SpinTrap | D143: 20 | E143: 13 | F143: ¥2,531.53
A144: Amersham 蛋白免疫印迹 | B144: RPN2232 | C144: ECL Prime Western Blotting Detection Reagent | D144: 367 | E144: 295 | F144: ¥2,576.57
A145: 细胞密度梯度分离介质 | B145: 17544502 | C145: Percoll PLUS 250 ML | D145: 5 | E145: 9 | F145: ¥2,612.61
A146: Amersham 蛋白免疫印迹 | B146: 10600023 | C146: PVDF 0.45UM 300MMx4M 1/PK | D146: 734 | E146: 297 | F146: ¥2,639.64
A147: Amersham 蛋白免疫印迹 | B147: 3030-704 | C147: 3MM CHR 27CMX100M 1RL/PK | D147: 41 | E147: 76 | F147: ¥2,648.65
A148: Amersham 蛋白免疫印迹 | B148: NA934-1ML | C148: RABBIT IGG HRP LINKED WHOLE AB | D148: 28 | E148: 31 | F148: ¥2,711.71
A149: GE蛋白纯化凝胶产品 | B149: 29049104 | C149: HITRAP MABSELECT SURE, 1X1ML | D149: 9 | E149: 10 | F149: ¥2,720.72
A150: Amersham 蛋白免疫印迹 | B150: RPN2106 | C150: ECL WESTERN BLOTTING REAGENTS | D150: 34 | E150: 43 | F150: ¥2,792.79
A151: GE蛋白纯化凝胶产品 | B151: 11003399 | C151: HIS GRAVITRAP | D151: 17 | E151: 15 | F151: ¥2,792.79
A152: GE蛋白纯化凝胶产品 | B152: 19510101 | C152: COLUMN C 16/20 | E152: 11 | F152: ¥2,819.82
A153: 电泳 | B153: 80112932 | C153: GEL BOND FILM 124X258 MM (PKG/50) | D153: 1 | E153: 10 | F153: ¥2,936.93
A154: GE核酸分子生物学产品 | B154: 10404090 | C154: ELUTRAP BT1 28X19X26MM 100/PK | D154: 14 | E154: 32 | F154: ¥2,945.94
A155: GE蛋白纯化凝胶产品 | B155: 17101401 | C155: Q SEPHAROSE HIGH PERF. 75 ML | D155: 47 | E155: 14 | F155: ¥2,954.95
A156: GE蛋白纯化凝胶产品 | B156: 17108701 | C156: SP SEPHAROSE HIGH PERF. 75 ML | D156: 19 | E156: 13 | F156: ¥2,954.95
A157: Biacore | B157: BR100651 | C157: Maintenance Kit, type 2 | D157: 47 | E157: 33 | F157: ¥2,981.98
A158: GE蛋白纯化凝胶产品 | B158: 17075601 | C158: GLUTATHIONE SEPHAROSE 4B 10 ML | D158: 547 | E158: 370 | F158: ¥3,036.03
A159: Amersham 蛋白免疫印迹 | B159: 10600001 | C159: PT 0.2UM 300MMx4M 1/PK | D159: 554 | E159: 504 | F159: ¥3,063.06
A160: 电泳 | B160: 80112936 | C160: GELBOND PAG FILM 124X258MM (PKG/50) | D160: 18 | E160: 11 | F160: ¥3,072.07
A161: GE核酸分子生物学产品 | B161: 17085302 | C161: NAP-5 50 ST | D161: 73 | E161: 41 | F161: ¥3,108.11
A162: GE蛋白纯化凝胶产品 | B162: 17140801 | C162: HITRAP DESALTING, 5X5ML | D162: 152 | E162: 92 | F162: ¥3,117.11
A163: GE蛋白纯化凝胶产品 | B163: 28918779 | C163: MBPTrap 1 x 5 mL | D163: 27 | E163: 20 | F163: ¥3,126.12
A164: 电泳 | B164: 17047201 | C164: LOW PI CALIBRATION KIT PH 2.5-6.5 | D164: 24 | E164: 41 | F164: ¥3,135.13
A165: 电泳 | B165: 17047301 | C165: HIGH PI CALIBRATION KIT PH 5-10.5 | D165: 15 | E165: 16 | F165: ¥3,135.13
A166: GE蛋白纯化凝胶产品 | B166: 28989876 | C166: Adapter XK 16 | D166: 22 | E166: 10 | F166: ¥3,135.13
A167: GE蛋白纯化凝胶产品 | B167: 17001001 | C167: SEPHADEX G-10 100 G | D167: 100 | E167: 57 | F167: ¥3,144.14
A168: GE蛋白纯化凝胶产品 | B168: 17600233 | C168: HITRAP IEX SELECTION KIT | D168: 30 | E168: 26 | F168: ¥3,153.15
A169: GE蛋白纯化凝胶产品 | B169: 28411007 | C169: HiTrap HIC Selection Kit, 7x1ml | D169: 18 | E169: 25 | F169: ¥3,153.15
A170: GE蛋白纯化凝胶产品 | B170: 17003301 | C170: SEPHADEX G-25 MEDIUM 100 G | D170: 107 | E170: 44 | F170: ¥3,162.16
A171: Amersham 蛋白免疫印迹 | B171: RPN2235 | C171: ECL Select WB detection reagent | D171: 90 | E171: 82 | F171: ¥3,198.20
A172: GE蛋白纯化凝胶产品 | B172: 17085101 | C172: COLUMN PD 10 | D172: 470 | E172: 325 | F172: ¥3,216.21
A173: GE核酸分子生物学产品 | B173: RPN303B | C173: HYBOND-N+, 30CMX3M | D173: 138 | E173: 163 | F173: ¥3,216.21
A174: GE核酸分子生物学产品 | B174: RPN303T | C174: HYBOND-NX NYLON MEMBRANE 30CMX3M ROLL | D174: 7 | E174: 9 | F174: ¥3,216.21
A175: GE蛋白纯化凝胶产品 | B175: 17036001 | C175: BLUE DEXTRAN 2000 10 G | D175: 85 | E175: 55 | F175: ¥3,225.22
A176: Amersham 蛋白免疫印迹 | B176: 10600021 | C176: PVDF 0.2UM 260MMx4M 1/PK | D176: 103 | E176: 57 | F176: ¥3,243.24
A177: GE蛋白纯化凝胶产品 | B177: 28934388 | C177: HiTrap Capto IEX Selection Kit | D177: 14 | E177: 18 | F177: ¥3,243.24
A178: GE蛋白纯化凝胶产品 | B178: 17003201 | C178: SEPHADEX G-25 FINE 100 G | D178: 23 | E178: 13 | F178: ¥3,243.24
A179: Biacore | B179: 29179315 | C179: Series S Sensor Chip Protein G 1-p | D179: 2 | E179: 11 | F179: ¥3,270.27
A180: GE蛋白纯化凝胶产品 | B180: 17040403 | C180: HITRAP PROTEIN G HP, 2 X 1 ML | D180: 96 | E180: 79 | F180: ¥3,378.38
A181: 电泳 | B181: 17047101 | C181: BROAD PI CALIBRATION KIT PH 3-10 | D181: 51 | E181: 61 | F181: ¥3,396.39
A182: GE蛋白纯化凝胶产品 | B182: 17513101 | C182: GSTRAP FF, 1X5ML | D182: 19 | E182: 23 | F182: ¥3,441.44
A183: Biacore | B183: BR100050 | C183: Amine Coupling Kit | D183: 71 | E183: 92 | F183: ¥3,450.45
A184: GE蛋白纯化凝胶产品 | B184: 17531801 | C184: NI SEPHAROSE 6FF, 25 ML | D184: 249 | E184: 164 | F184: ¥3,459.46
A185: Amersham 蛋白免疫印迹 | B185: NA931-1ML | C185: MOUSE IGG HRP LINKED WHOLE AB | D185: 18 | E185: 18 | F185: ¥3,459.46
A186: GE蛋白纯化凝胶产品 | B186: 17548151 | C186: HiTrap Capto Core 700, 5 x 1 ml | D186: 5 | E186: 17 | F186: ¥3,468.47
A187: GE蛋白纯化凝胶产品 | B187: 80648451 | C187: 2-D CLEAN-UP KIT | D187: 50 | E187: 25 | F187: ¥3,477.47
A188: 电泳 | B188: 18103532 | C188: CLEAN GEL IEF (PK/5) | D188: 15 | E188: 45 | F188: ¥3,486.48
A189: GE蛋白纯化凝胶产品 | B189: 17004201 | C189: SEPHADEX G-50 FINE 100 G | D189: 10 | E189: 9 | F189: ¥3,486.48
A190: Biacore | B190: BR100838 | C190: Mouse Antibody Capture Kit | D190: 11 | E190: 12 | F190: ¥3,531.53
A191: GE蛋白纯化凝胶产品 | B191: 17098101 | C191: CNBr Activated Sepharose 4FF,10G | D191: 57 | E191: 35 | F191: ¥3,567.56
A192: GE蛋白纯化凝胶产品 | B192: 17513001 | C192: GSTRAP FF, 5X1ML | D192: 13 | E192: 9 | F192: ¥3,567.56
A193: GE蛋白纯化凝胶产品 | B193: 28918004 | C193: PD SpinTrap G-25 | D193: 37 | E193: 61 | F193: ¥3,612.61
A194: GE蛋白纯化凝胶产品 | B194: 17515401 | C194: HITRAP DEAE FF 5 X 5 ML | D194: 35 | E194: 27 | F194: ¥3,621.62
A195: GE蛋白纯化凝胶产品 | B195: 17515601 | C195: HITRAP Q FF, 5 X 5 ML | D195: 36 | E195: 25 | F195: ¥3,621.62
A196: GE蛋白纯化凝胶产品 | B196: 17515701 | C196: HITRAP SP FF, 5 X 5 ML | D196: 20 | E196: 19 | F196: ¥3,621.62
A197: 电泳 | B197: 17045601 | C197: PHARMALYTE 3 - 10 | D197: 121 | E197: 109 | F197: ¥3,657.65
A198: 电泳 | B198: 17045501 | C198: PHARMALYTE 8 - 10.5 | D198: 37 | E198: 29 | F198: ¥3,657.65
A199: 电泳 | B199: 17045101 | C199: PHARMALYTE 2.5 - 5 | D199: 18 | E199: 13 | F199: ¥3,657.65
A200: 电泳 | B200: 17045201 | C200: PHARMALYTE 4 - 6.5 | D200: 6 | E200: 10 | F200: ¥3,657.65
A201: GE蛋白纯化凝胶产品 | B201: 80648356 | C201: 2-D QUANT KIT | D201: 52 | E201: 27 | F201: ¥3,738.74
... 158 more rows

Sheet 第一档
A1: 单位/课题组 | C1: 销售代理商 | D1: GEHC销售确认
A2: 第一档赠品清单
A3: Row Labels | B3: 产品货号 | C3: PG DIS | D3: 人民币含税目录价 | E3: 客户勾选
A4: GE蛋白纯化凝胶产品 | B4: 19759501 | C4: O-RING, 27.1 X 1.60 NBR | D4: ¥234.23 | E4: □
A5: GE蛋白纯化凝胶产品 | B5: 19176701 | C5: SUPPORT SCREEN | D5: ¥360.36 | E5: □
A6: Amersham 蛋白免疫印迹 | B6: 3030-861 | C6: 3MM CHR 20X20CM 100/PK | D6: ¥422.70 | E6: □
A7: Amersham 蛋白免疫印迹 | B7: 3030-6188 | C7: 3MM CHR 15X20CM 100/PK | D7: ¥441.08 | E7: □
A8: GE蛋白纯化凝胶产品 | B8: 29051325 | C8: HITRAP Q HP, 1 X 1 ML | D8: ¥459.46 | E8: □
A9: GE蛋白纯化凝胶产品 | B9: 29051324 | C9: HITRAP SP HP, 1 X 1 ML | D9: ¥459.46 | E9: □
A10: GE蛋白纯化凝胶产品 | B10: 19016301 | C10: O-RING | D10: ¥486.49 | E10: □
A11: GE蛋白纯化凝胶产品 | B11: 18321603 | C11: LABMATE PD-10 BUFFER RESERVOIR | D11: ¥495.50 | E11: □
A12: 双向电泳系列产品 | B12: 17131901 | C12: UREA, 500 G | D12: ¥523.78 | E12: □
A13: GE蛋白纯化凝胶产品 | B13: 18102712 | C13: UNION LUERLOCK FEMALE/M6 FEMALE | D13: ¥531.53 | E13: □
A14: GE蛋白纯化凝胶产品 | B14: 29051021 | C14: HISTRAP HP 1 X 1 ML | D14: ¥549.55 | E14: □
A15: Biacore | B15: BR100287 | C15: Plastic Vials 1.5 ml | D15: ¥603.60 | E15: □
A16: GE蛋白纯化凝胶产品 | B16: 19199350 | C16: TUBING CONNECTOR/M6 MALE | D16: ¥612.61 | E16: □
A17: GE蛋白纯化凝胶产品 | B17: 19500801 | C17: NET RING 10 MICROMETER | D17: ¥612.61 | E17: □
A18: GE蛋白纯化凝胶产品 | B18: 29048586 | C18: HisTrap excel 1x1ml | D18: ¥621.62 | E18: □
A19: GE蛋白纯化凝胶产品 | B19: 18876101 | C19: NET RING XK 16(10UM), PKG/5 | D19: ¥630.63 | E19: □
A20: GE蛋白纯化凝胶产品 | B20: 18111368 | C20: PEEK TUBING, 2M/ID 0,5/OD 1/16 | D20: ¥630.63 | E20: □
A21: GE蛋白纯化凝胶产品 | B21: 18111583 | C21: #N/A | D21: ¥639.64 | E21: □
A22: 双向电泳系列产品 | B22: 17600088 | C22: IPG-BUFFER, PH 3-10NL | D22: ¥643.24 | E22: □
A23: 双向电泳系列产品 | B23: 17600086 | C23: IPG-BUFFER, PH 4-7L | D23: ¥643.24 | E23: □
A24: 双向电泳系列产品 | B24: 17600087 | C24: IPG-BUFFER, PH 3-10L | D24: ¥643.24 | E24: □
A25: Amersham 蛋白免疫印迹 | B25: 10499001 | C25: MEMBRANE MARKING PEN 10/PK | D25: ¥680.27 | E25: □
A26: GE蛋白纯化凝胶产品 | B26: 18111974 | C26: ETFE TUBING,2M/ID0.75/OD1/17 | D26: ¥684.68 | E26: □
A27: GE蛋白纯化凝胶产品 | B27: 17044003 | C27: CON-A SEPHAROSE 4B 5 ML | D27: ¥774.77 | E27: □
A28: GE蛋白纯化凝胶产品 | B28: 18111253 | C28: PEEK TUBING ID 0,75MM (1/16in) | D28: ¥774.77 | E28: □
A29: 双向电泳系列产品 | B29: 17133501 | C29: DRYSTRIP COVER FLUID, 1000 ML | D29: ¥781.08 | E29: □
A30: GE蛋白纯化凝胶产品 | B30: 17070910 | C30: DEAE SEPHAROSE FAST FLOW, 25 ML | D30: ¥801.80 | E30: □
A31: GE蛋白纯化凝胶产品 | B31: 17051010 | C31: Q SEPHAROSE FAST FLOW, 25 ML | D31: ¥801.80 | E31: □
A32: GE蛋白纯化凝胶产品 | B32: 17072910 | C32: SP SEPHAROSE FAST FLOW, 25 ML | D32: ¥801.80 | E32: □
A33: GE蛋白纯化凝胶产品 | B33: 17071910 | C33: CM SEPHAROSE FAST FLOW, 25 ML | D33: ¥801.80 | E33: □
A34: GE蛋白纯化凝胶产品 | B34: 29048684 | C34: HITRAP DESALTING, 1X5ML | D34: ¥810.81 | E34: □
A35: GE蛋白纯化凝胶产品 | B35: 17531806 | C35: NI SEPHAROSE 6 FF 5 ML | D35: ¥837.84 | E35: □
A36: GE蛋白纯化凝胶产品 | B36: 11000464 | C36: STOP PLUG FEMALE, 1/16 IN | D36: ¥837.84 | E36: □
A37: 双向电泳系列产品 | B37: 17131401 | C37: CHAPS 1 G | D37: ¥863.78 | E37: □
A38: GE蛋白纯化凝胶产品 | B38: 28401081 | C38: HITRAP_HIPREP 1_16 CONNEC AKTA | D38: ¥873.87 | E38: □
A39: Biacore | B39: BR100188 | C39: HBS-EP Buffer,ready-to-use | D39: ¥936.94 | E39: □
A40: 电泳 | B40: 17132101 | C40: TRIS, 500 G | D40: ¥937.30 | E40: □
A41: GE蛋白纯化凝胶产品 | B41: 28932225 | C41: Vivaspin 500, 10 kDa MWCO PES | D41: ¥954.95 | E41: □
A42: GE蛋白纯化凝胶产品 | B42: 28932237 | C42: Vivaspin 500, 100 kDa MWCO PES | D42: ¥954.95 | E42: □
A43: GE蛋白纯化凝胶产品 | B43: 18111257 | C43: #N/A | D43: ¥972.97 | E43: □
A44: Biacore | B44: BR100354 | C44: Glycine 1.5 | D44: ¥972.97 | E44: □
A45: Biacore | B45: BR100357 | C45: Glycine 3.0 | D45: ¥972.97 | E45: □
A46: Biacore | B46: 28995043 | C46: NTA Reagent Kit | D46: ¥972.97 | E46: □
A47: Biacore | B47: BR100355 | C47: Glycine 2.0 | D47: ¥972.97 | E47: □
A48: Biacore | B48: BR100356 | C48: Glycine 2.5 | D48: ¥972.97 | E48: □
A49: Amersham 蛋白免疫印迹 | B49: 10426981 | C49: GB005 200x200MM 25/PK | D49: ¥990.99 | E49: □
A50: GE蛋白纯化凝胶产品 | B50: 18111255 | C50: FINGERTIGHT CONNECTOR 1/16in | D50: ¥1,009.01 | E50: □
A51: Biacore | B51: BR100351 | C51: Acetate 5.0 | D51: ¥1,009.01 | E51: □
A52: Biacore | B52: BR100350 | C52: Acetate 4.5 | D52: ¥1,009.01 | E52: □
A53: Biacore | B53: BR100352 | C53: Acetate 5.5 | D53: ¥1,009.01 | E53: □
A54: Biacore | B54: BR100349 | C54: Acetate 4.0 | D54: ¥1,009.01 | E54: □
A55: GE蛋白纯化凝胶产品 | B55: 18111258 | C55: #N/A | D55: ¥1,018.02 | E55: □
A56: GE蛋白纯化凝胶产品 | B56: 18112094 | C56: ON-LINE FILTER (10 ML/MIN) | D56: ¥1,036.04 | E56: □
A57: Biacore | B57: BR100826 | C57: HBS-EP+ buffer 10X 4x50ml | D57: ¥1,054.05 | E57: □
A58: Biacore | B58: BR100358 | C58: NaOH 50 | D58: ¥1,072.07 | E58: □
A59: GE蛋白纯化凝胶产品 | B59: 18115344 | C59: PACKING CONNECTOR XK 16 | D59: ¥1,090.09 | E59: □
A60: 电泳 | B60: 80112946 | C60: IEF SAMPLE APPL PIECES (PKG/200) | D60: ¥1,116.22 | E60: □
A61: GE蛋白纯化凝胶产品 | B61: 18102711 | C61: ONLINE FILTER KIT, PKG/10(100 ML/MIN AKTA SYSTEMS) | D61: ¥1,162.16 | E61: □
A62: 双向电泳系列产品 | B62: 17600111 | C62: IMMOBILINE DRYSTRIP PH3-10,7CM | D62: ¥1,194.59 | E62: □
A63: 双向电泳系列产品 | B63: 17600110 | C63: IMMOBILINE DRYSTRIP PH 4-7,7CM | D63: ¥1,194.59 | E63: □
A64: 双向电泳系列产品 | B64: RPN6302 | C64: IODOACETAMIDE 25GM. | D64: ¥1,203.78 | E64: □
A65: Biacore | B65: BR100502 | C65: Rubber caps, type 3 | D65: ¥1,225.22 | E65: □
A66: GE蛋白纯化凝胶产品 | B66: 28932360 | C66: Vivaspin 20, 10 kDa MWCO PES | D66: ¥1,234.23 | E66: □
A67: GE蛋白纯化凝胶产品 | B67: 28932363 | C67: Vivaspin 20, 100 kDa MWCO PES | D67: ¥1,234.23 | E67: □
A68: GE蛋白纯化凝胶产品 | B68: 28932361 | C68: Vivaspin 20, 30 kDa MWCO PES | D68: ¥1,234.23 | E68: □
A69: 电泳 | B69: 17133201 | C69: REPEL-SILANE ES, 500 ML | D69: ¥1,240.54 | E69: □
A70: Amersham 蛋白免疫印迹 | B70: RPN2109 | C70: ECL BLOTTING REAGENTS | D70: ¥1,286.49 | E70: □
A71: GE蛋白纯化凝胶产品 | B71: 28932296 | C71: Vivaspin 6, 10 kDa MWCO PES | D71: ¥1,315.31 | E71: □
A72: GE核酸分子生物学产品 | B72: 17085301 | C72: NAP-5 20 ST | D72: ¥1,335.04 | E72: □
A73: 磁珠 | B73: 28967388 | C73: His Mag Sepharose Ni 2x1 ml | D73: ¥1,341.62 | E73: □
A74: GE蛋白纯化凝胶产品 | B74: 11000407 | C74: INLET FILTER HOLDER KIT (AKTA) | D74: ¥1,351.35 | E74: □
A75: Biacore | B75: BR100503 | C75: Microplate, 96 well | D75: ¥1,360.36 | E75: □
A76: 电泳 | B76: 17133001 | C76: BIND-SILANE, 25 ML | D76: ¥1,424.32 | E76: □
A77: 电泳 | B77: 17054301 | C77: PHASTGEL IEF 3-9 | D77: ¥1,447.30 | E77: □
A78: Biacore | B78: BR100666 | C78: BIAmaintenance Kit | D78: ¥1,450.45 | E78: □
A79: GE核酸分子生物学产品 | B79: 17085401 | C79: NAP-10 20 ST | D79: ¥1,463.06 | E79: □
A80: 双向电泳系列产品 | B80: 17123501 | C80: IMMOBILINE DRYSTRIP PH 3-10 NL,18CM | D80: ¥1,497.84 | E80: □
A81: 双向电泳系列产品 | B81: 17123301 | C81: IMMOBILINE DRYSTRIP PH 4-7, 18CM | D81: ¥1,497.84 | E81: □
A82: 双向电泳系列产品 | B82: 17600115 | C82: IMMOBILINE DRYSTRIP PH3-10NL, 13CM | D82: ¥1,497.84 | E82: □
A83: 双向电泳系列产品 | B83: 17600114 | C83: IMMOBILINE DRYSTRIPPH3-10,13CM | D83: ¥1,497.84 | E83: □
A84: 双向电泳系列产品 | B84: 17123401 | C84: IMMOBILINE DRYSTRIP PH 3-10 L, 18CM | D84: ¥1,497.84 | E84: □
A85: GE蛋白纯化凝胶产品 | B85: 29053612 | C85: TRICORN 10 Filter Kit | D85: ¥1,594.59 | E85: □
A86: GE蛋白纯化凝胶产品 | B86: 29048576 | C86: HITRAP PROTEIN A HP, 1 X 1 ML | D86: ¥1,621.62 | E86: □
A87: Biacore | B87: BR100672 | C87: PBS 10 x | D87: ¥1,630.63 | E87: □
A88: GE蛋白纯化凝胶产品 | B88: 17547015 | C88: HiScreen Capto Q ImpRes | D88: ¥1,639.64 | E88: □
A89: Biacore | B89: 28995084 | C89: PBS-P+ 10X | D89: ¥1,648.65 | E89: □
A90: GE蛋白纯化凝胶产品 | B90: 18111401 | C90: SAMPLE LOOP 1.0 ML, INV-907 | D90: ¥1,648.65 | E90: □
A91: GE蛋白纯化凝胶产品 | B91: 17505501 | C91: HITRAP DEAE FF 5 X 1 ML | D91: ¥1,666.67 | E91: □
A92: GE蛋白纯化凝胶产品 | B92: 17505301 | C92: HITRAP Q FF, 5 X 1 ML | D92: ¥1,666.67 | E92: □
A93: GE蛋白纯化凝胶产品 | B93: 28406407 | C93: TRICORN 10 COLUMN ADAPTOR UNIT | D93: ¥1,675.67 | E93: □
A94: GE蛋白纯化凝胶产品 | B94: 17524801 | C94: HISTRAP HP 1 X 5 ML | D94: ¥1,738.74 | E94: □
A95: GE蛋白纯化凝胶产品 | B95: 17115301 | C95: HITRAP Q HP, 5 X 1 ML | D95: ¥1,738.74 | E95: □
A96: GE蛋白纯化凝胶产品 | B96: 17115101 | C96: HITRAP SP HP, 5 X 1 ML | D96: ¥1,738.74 | E96: □
A97: 双向电泳系列产品 | B97: 17600246 | C97: IMM. DRYSTRIP PH 4-7, 24 CM | D97: ¥1,755.13 | E97: □
A98: 双向电泳系列产品 | B98: 17600245 | C98: IMM. DRYSTRIP PH 3-10 NL, 24CM | D98: ¥1,755.13 | E98: □
A99: GE核酸分子生物学产品 | B99: 25660030 | C99: GENOMIPHI V2 DNA AMP KIT 25RXN | D99: ¥1,777.48 | E99: □
A100: GE蛋白纯化凝胶产品 | B100: 17531901 | C100: HISTRAP FF 5 X 1 ML | D100: ¥1,792.79 | E100: □
A101: Biacore | B101: BR100209 | C101: Glass vials 16mm | D101: ¥1,801.80 | E101: □
A102: Biacore | B102: BR100212 | C102: Plastic vials 7mm | D102: ¥1,837.84 | E102: □
A103: GE蛋白纯化凝胶产品 | B103: 29048581 | C103: HITRAP PROTEIN G HP, 1 X 1 ML | D103: ¥1,846.85 | E103: □
A104: 细胞密度梯度分离介质 | B104: 17144002 | C104: FICOLL PAQUE PLUS 6X100 ML | D104: ¥1,864.86 | E104: □
A105: 磁珠 | B105: 28944006 | C105: Protein A Mag Sepharose 1x500ul | D105: ¥1,909.91 | E105: □
A106: 细胞密度梯度分离介质 | B106: 17544202 | C106: FICOLL PAQUE PREMIUM 6X100ML | D106: ¥1,954.95 | E106: □
A107: GE蛋白纯化凝胶产品 | B107: 11000458 | C107: HISTRAP FF CRUDE 5X1 ML | D107: ¥1,963.96 | E107: □
A108: GE核酸分子生物学产品 | B108: 27532501 | C108: MICROSPIN G-25 COLUMNS | D108: ¥1,981.98 | E108: □
A109: GE核酸分子生物学产品 | B109: 27533001 | C109: MICROSPIN G-50 COLUMNS, 50 COLUMNS | D109: ¥1,981.98 | E109: □
A110: GE核酸分子生物学产品 | B110: 28903408 | C110: ProbeQuantTM G-50 Micro Col,50 | D110: ¥1,981.98 | E110: □
A111: GE蛋白纯化凝胶产品 | B111: 17548115 | C111: HiScreen Capto Core 700 | D111: ¥1,990.99 | E111: □
A112: GE蛋白纯化凝胶产品 | B112: 17071601 | C112: HITRAP NHS-ACTIV HP, 5 X 1ML | D112: ¥2,000.00 | E112: □
A113: 细胞密度梯度分离介质 | B113: 17089102 | C113: PERCOLL 250ML | D113: ¥2,045.04 | E113: □
A114: GE蛋白纯化凝胶产品 | B114: 17524701 | C114: HISTRAP HP 5 X 1 ML | D114: ¥2,045.04 | E114: □
A115: GE蛋白纯化凝胶产品 | B115: 17040701 | C115: HITRAP HEPARIN HP,1 X 5 ML | D115: ¥2,054.05 | E115: □
A116: Biacore | B116: BR100054 | C116: Surfactant P20 | D116: ¥2,054.05 | E116: □
A117: 磁珠 | B117: 30152105011150 | C117: Sera-Mag Streptavidin, 1mL | D117: ¥2,054.05 | E117: □
A118: GE蛋白纯化凝胶产品 | B118: 17058410 | C118: SEPHACRYL S-200 HR, 150 ML | D118: ¥2,117.12 | E118: □
A119: GE蛋白纯化凝胶产品 | B119: 17059910 | C119: SEPHACRYL S-300 HR, 150 ML | D119: ¥2,117.12 | E119: □
A120: GE蛋白纯化凝胶产品 | B120: 17061210 | C120: SEPHACRYL S-100 HR, 150 ML | D120: ¥2,117.12 | E120: □
A121: GE蛋白纯化凝胶产品 | B121: 17060910 | C121: SEPHACRYL S-400 HR, 150 ML | D121: ¥2,117.12 | E121: □
A122: GE核酸分子生物学产品 | B122: 10404092 | C122: ELUTRAP BT2 19X26MM 100/PK | D122: ¥2,117.12 | E122: □
A123: Biacore | B123: BR100399 | C123: Sensor Chip CM5 | D123: ¥2,126.12 | E123: □
A124: 电泳 | B124: 18100226 | C124: IEF/SDS SAMPLE APPL STRIP 52S(P/5 | D124: ¥2,135.13 | E124: □
A125: GE核酸分子生物学产品 | B125: 27411001 | C125: POLY (A) 100 MG | D125: ¥2,153.15 | E125: □
A126: GE蛋白纯化凝胶产品 | B126: 17043501 | C126: COLUMN PD-10,EMPTY | D126: ¥2,162.16 | E126: □
A127: Amersham 蛋白免疫印迹 | B127: 10600002 | C127: PT 0.45UM 300MMx4M 1/PK | D127: ¥2,171.17 | E127: □
A128: GE核酸分子生物学产品 | B128: 17085201 | C128: NAP-25 20 ST | D128: ¥2,171.17 | E128: □
A129: GE核酸分子生物学产品 | B129: 27514001 | C129: MICROSPIN S-400 HR, 50 COLUMNS | D129: ¥2,171.17 | E129: □
A130: GE蛋白纯化凝胶产品 | B130: 19500201 | C130: COLUMN C 10/20 | D130: ¥2,189.19 | E130: □
A131: Biacore | B131: BR100411 | C131: Rubber Cap type 2 | D131: ¥2,252.25 | E131: □
A132: GE蛋白纯化凝胶产品 | B132: 17040601 | C132: HITRAP HEPARIN HP, 5 X 1 ML | D132: ¥2,270.27 | E132: □
A133: Biacore | B133: 29104988 | C133: Series S Sensor Chip CM5-1-pack | D133: ¥2,315.31 | E133: □
A134: GE蛋白纯化凝胶产品 | B134: 17371205 | C134: HisTrap excel 5x1ml | D134: ¥2,387.39 | E134: □
A135: GE核酸分子生物学产品 | B135: 25640010 | C135: TEMPLIPHI 100AMPLIFICATION KIT | D135: ¥2,432.34 | E135: □
A136: Amersham 蛋白免疫印迹 | B136: 10600003 | C136: PTP 0.45UM 300MMx4M 1/PK | D136: ¥2,450.45 | E136: □
A137: 细胞密度梯度分离介质 | B137: 17544602 | C137: Ficoll-Paque PREMIUM 1,084 6X100ML | D137: ¥2,477.48 | E137: □
A138: 细胞密度梯度分离介质 | B138: 17544652 | C138: Ficoll-Paque PREMIUM 1,073 6X100ML | D138: ¥2,477.48 | E138: □
A139: GE蛋白纯化凝胶产品 | B139: 17090601 | C139: NHS ACT SEPHAROSE 4 FF 25 ML | D139: ¥2,513.51 | E139: □
A140: 电泳 | B140: 17044601 | C140: CALIBRATION KIT LMW FOR ELECTROPH. | D140: ¥2,513.51 | E140: □
A141: 电泳 | B141: 17044501 | C141: CALIBRATION KIT HMW FOR ELECTROPH. | D141: ¥2,513.51 | E141: □
A142: GE蛋白纯化凝胶产品 | B142: 18111402 | C142: SAMPLE LOOP 2.0 ML, INV-907 | D142: ¥2,522.52 | E142: □
A143: GE蛋白纯化凝胶产品 | B143: 17548101 | C143: Capto Core 700, 25 mL | D143: ¥2,522.52 | E143: □
A144: GE蛋白纯化凝胶产品 | B144: 28903134 | C144: Protein G HP SpinTrap | D144: ¥2,531.53 | E144: □
A145: Amersham 蛋白免疫印迹 | B145: RPN2232 | C145: ECL Prime Western Blotting Detection Reagent | D145: ¥2,576.57 | E145: □
A146: 细胞密度梯度分离介质 | B146: 17544502 | C146: Percoll PLUS 250 ML | D146: ¥2,612.61 | E146: □
A147: Amersham 蛋白免疫印迹 | B147: 10600023 | C147: PVDF 0.45UM 300MMx4M 1/PK | D147: ¥2,639.64 | E147: □
A148: Amersham 蛋白免疫印迹 | B148: 3030-704 | C148: 3MM CHR 27CMX100M 1RL/PK | D148: ¥2,648.65 | E148: □
A149: Amersham 蛋白免疫印迹 | B149: NA934-1ML | C149: RABBIT IGG HRP LINKED WHOLE AB | D149: ¥2,711.71 | E149: □
A150: GE蛋白纯化凝胶产品 | B150: 29049104 | C150: HITRAP MABSELECT SURE, 1X1ML | D150: ¥2,720.72 | E150: □
A151: Amersham 蛋白免疫印迹 | B151: RPN2106 | C151: ECL WESTERN BLOTTING REAGENTS | D151: ¥2,792.79 | E151: □
A152: GE蛋白纯化凝胶产品 | B152: 11003399 | C152: HIS GRAVITRAP | D152: ¥2,792.79 | E152: □
A153: GE蛋白纯化凝胶产品 | B153: 19510101 | C153: COLUMN C 16/20 | D153: ¥2,819.82 | E153: □
A154: 电泳 | B154: 80112932 | C154: GEL BOND FILM 124X258 MM (PKG/50) | D154: ¥2,936.93 | E154: □
A155: GE核酸分子生物学产品 | B155: 10404090 | C155: ELUTRAP BT1 28X19X26MM 100/PK | D155: ¥2,945.94 | E155: □
A156: GE蛋白纯化凝胶产品 | B156: 17101401 | C156: Q SEPHAROSE HIGH PERF. 75 ML | D156: ¥2,954.95 | E156: □
A157: GE蛋白纯化凝胶产品 | B157: 17108701 | C157: SP SEPHAROSE HIGH PERF. 75 ML | D157: ¥2,954.95 | E157: □
A158: Biacore | B158: BR100651 | C158: Maintenance Kit, type 2 | D158: ¥2,981.98 | E158: □
A159: GE蛋白纯化凝胶产品 | B159: 17075601 | C159: GLUTATHIONE SEPHAROSE 4B 10 ML | D159: ¥3,036.03 | E159: □
A160: Amersham 蛋白免疫印迹 | B160: 10600001 | C160: PT 0.2UM 300MMx4M 1/PK | D160: ¥3,063.06 | E160: □
A161: 电泳 | B161: 80112936 | C161: GELBOND PAG FILM 124X258MM (PKG/50) | D161: ¥3,072.07 | E161: □
A162: GE核酸分子生物学产品 | B162: 17085302 | C162: NAP-5 50 ST | D162: ¥3,108.11 | E162: □
A163: GE蛋白纯化凝胶产品 | B163: 17140801 | C163: HITRAP DESALTING, 5X5ML | D163: ¥3,117.11 | E163: □
A164: GE蛋白纯化凝胶产品 | B164: 28918779 | C164: MBPTrap 1 x 5 mL | D164: ¥3,126.12 | E164: □
A165: 电泳 | B165: 17047201 | C165: LOW PI CALIBRATION KIT PH 2.5-6.5 | D165: ¥3,135.13 | E165: □
A166: 电泳 | B166: 17047301 | C166: HIGH PI CALIBRATION KIT PH 5-10.5 | D166: ¥3,135.13 | E166: □
A167: GE蛋白纯化凝胶产品 | B167: 28989876 | C167: Adapter XK 16 | D167: ¥3,135.13 | E167: □
A168: GE蛋白纯化凝胶产品 | B168: 17001001 | C168: SEPHADEX G-10 100 G | D168: ¥3,144.14 | E168: □
A169: GE蛋白纯化凝胶产品 | B169: 17600233 | C169: HITRAP IEX SELECTION KIT | D169: ¥3,153.15 | E169: □
A170: GE蛋白纯化凝胶产品 | B170: 28411007 | C170: HiTrap HIC Selection Kit, 7x1ml | D170: ¥3,153.15 | E170: □
A171: GE蛋白纯化凝胶产品 | B171: 17003301 | C171: SEPHADEX G-25 MEDIUM 100 G | D171: ¥3,162.16 | E171: □
A172: Amersham 蛋白免疫印迹 | B172: RPN2235 | C172: ECL Select WB detection reagent | D172: ¥3,198.20 | E172: □
C174: 总计赠品金额
C175: 总计采购金额
B177: 请您确认以下信息：
B178: □ | C178: 以上赠品一经送出，如无质量问题，将不能调换或退货。
C180: 课题组负责人签字
C181: 日期

Sheet 第二档
A1: 单位/课题组 | C1: 销售代理商 | D1: GEHC销售确认
A2: 第二档赠品清单
A3: Row Labels | B3: 产品货号 | C3: PG DIS | D3: 人民币含税目录价 | E3: 客户勾选
A4: GE蛋白纯化凝胶产品 | B4: 17085101 | C4: COLUMN PD 10 | D4: ¥3,216.21 | E4: □
A5: GE核酸分子生物学产品 | B5: RPN303B | C5: HYBOND-N+, 30CMX3M | D5: ¥3,216.21 | E5: □
A6: GE核酸分子生物学产品 | B6: RPN303T | C6: HYBOND-NX NYLON MEMBRANE 30CMX3M ROLL | D6: ¥3,216.21 | E6: □
A7: GE蛋白纯化凝胶产品 | B7: 17036001 | C7: BLUE DEXTRAN 2000 10 G | D7: ¥3,225.22 | E7: □
A8: Amersham 蛋白免疫印迹 | B8: 10600021 | C8: PVDF 0.2UM 260MMx4M 1/PK | D8: ¥3,243.24 | E8: □
A9: GE蛋白纯化凝胶产品 | B9: 28934388 | C9: HiTrap Capto IEX Selection Kit | D9: ¥3,243.24 | E9: □
A10: GE蛋白纯化凝胶产品 | B10: 17003201 | C10: SEPHADEX G-25 FINE 100 G | D10: ¥3,243.24 | E10: □
A11: Biacore | B11: 29179315 | C11: Series S Sensor Chip Protein G 1-p | D11: ¥3,270.27 | E11: □
A12: GE蛋白纯化凝胶产品 | B12: 17040403 | C12: HITRAP PROTEIN G HP, 2 X 1 ML | D12: ¥3,378.38 | E12: □
A13: 电泳 | B13: 17047101 | C13: BROAD PI CALIBRATION KIT PH 3-10 | D13: ¥3,396.39 | E13: □
A14: GE蛋白纯化凝胶产品 | B14: 17513101 | C14: GSTRAP FF, 1X5ML | D14: ¥3,441.44 | E14: □
A15: Biacore | B15: BR100050 | C15: Amine Coupling Kit | D15: ¥3,450.45 | E15: □
A16: GE蛋白纯化凝胶产品 | B16: 17531801 | C16: NI SEPHAROSE 6FF, 25 ML | D16: ¥3,459.46 | E16: □
A17: Amersham 蛋白免疫印迹 | B17: NA931-1ML | C17: MOUSE IGG HRP LINKED WHOLE AB | D17: ¥3,459.46 | E17: □
A18: GE蛋白纯化凝胶产品 | B18: 17548151 | C18: HiTrap Capto Core 700, 5 x 1 ml | D18: ¥3,468.47 | E18: □
A19: GE蛋白纯化凝胶产品 | B19: 80648451 | C19: 2-D CLEAN-UP KIT | D19: ¥3,477.47 | E19: □
A20: 电泳 | B20: 18103532 | C20: CLEAN GEL IEF (PK/5) | D20: ¥3,486.48 | E20: □
A21: GE蛋白纯化凝胶产品 | B21: 17004201 | C21: SEPHADEX G-50 FINE 100 G | D21: ¥3,486.48 | E21: □
A22: Biacore | B22: BR100838 | C22: Mouse Antibody Capture Kit | D22: ¥3,531.53 | E22: □
A23: GE蛋白纯化凝胶产品 | B23: 17098101 | C23: CNBr Activated Sepharose 4FF,10G | D23: ¥3,567.56 | E23: □
A24: GE蛋白纯化凝胶产品 | B24: 17513001 | C24: GSTRAP FF, 5X1ML | D24: ¥3,567.56 | E24: □
A25: GE蛋白纯化凝胶产品 | B25: 28918004 | C25: PD SpinTrap G-25 | D25: ¥3,612.61 | E25: □
A26: GE蛋白纯化凝胶产品 | B26: 17515401 | C26: HITRAP DEAE FF 5 X 5 ML | D26: ¥3,621.62 | E26: □
A27: GE蛋白纯化凝胶产品 | B27: 17515601 | C27: HITRAP Q FF, 5 X 5 ML | D27: ¥3,621.62 | E27: □
A28: GE蛋白纯化凝胶产品 | B28: 17515701 | C28: HITRAP SP FF, 5 X 5 ML | D28: ¥3,621.62 | E28: □
A29: 电泳 | B29: 17045601 | C29: PHARMALYTE 3 - 10 | D29: ¥3,657.65 | E29: □
A30: 电泳 | B30: 17045501 | C30: PHARMALYTE 8 - 10.5 | D30: ¥3,657.65 | E30: □
A31: 电泳 | B31: 17045101 | C31: PHARMALYTE 2.5 - 5 | D31: ¥3,657.65 | E31: □
A32: 电泳 | B32: 17045201 | C32: PHARMALYTE 4 - 6.5 | D32: ¥3,657.65 | E32: □
A33: GE蛋白纯化凝胶产品 | B33: 80648356 | C33: 2-D QUANT KIT | D33: ¥3,738.74 | E33: □
A34: GE蛋白纯化凝胶产品 | B34: 17002001 | C34: SEPHADEX G-15 100 G | D34: ¥3,738.74 | E34: □
A35: GE蛋白纯化凝胶产品 | B35: 17094801 | C35: BLUE SEPHAROSE 6 FAST FLOW, 50ML | D35: ¥3,756.75 | E35: □
A36: GE核酸分子生物学产品 | B36: 17084702 | C36: CSTFA | D36: ¥3,765.76 | E36: □
A37: GE蛋白纯化凝胶产品 | B37: 17528201 | C37: GSTRAP HP 1 X 5 ML | D37: ¥3,846.84 | E37: □
A38: GE蛋白纯化凝胶产品 | B38: 17004301 | C38: SEPHADEX G-50 MEDIUM 100 G | D38: ¥3,873.87 | E38: □
A39: GE蛋白纯化凝胶产品 | B39: 17526801 | C39: NI SEPHAROSE HP 25 ML | D39: ¥3,891.89 | E39: □
A40: GE蛋白纯化凝胶产品 | B40: 11001303 | C40: HITRAP CAPTO Q, 5X5ML | D40: ¥3,983.78 | E40: □
A41: GE蛋白纯化凝胶产品 | B41: 17005001 | C41: SEPHADEX G-75 100 G | D41: ¥4,018.01 | E41: □
A42: Amersham 蛋白免疫印迹 | B42: 10426994 | C42: GB005 580x580MM 25/PK | D42: ¥4,027.02 | E42: □
A43: GE蛋白纯化凝胶产品 | B43: 27084301 | C43: PRESCISSION PROTEASE | D43: ¥4,036.03 | E43: □
A44: 电泳 | B44: 17045301 | C44: PHARMALYTE 5 - 8 | D44: ¥4,054.05 | E44: □
A45: GE蛋白纯化凝胶产品 | B45: 17371201 | C45: Ni Sepharose excel 25 ml | D45: ¥4,063.06 | E45: □
A46: GE蛋白纯化凝胶产品 | B46: 17057501 | C46: CHELATING SEPHAROSE FAST FLOW | D46: ¥4,207.20 | E46: □
A47: GE蛋白纯化凝胶产品 | B47: 17115401 | C47: HITRAP Q HP 5X5 ML | D47: ¥4,216.21 | E47: □
A48: GE蛋白纯化凝胶产品 | B48: 17115201 | C48: HITRAP SP HP, 5X5 ML | D48: ¥4,216.21 | E48: □
A49: GE蛋白纯化凝胶产品 | B49: 17003101 | C49: SEPHADEX G-25 SUPERFINE 100 G | D49: ¥4,225.22 | E49: □
A50: 细胞密度梯度分离介质 | B50: 17089101 | C50: PERCOLL 1 L | D50: ¥4,279.28 | E50: □
A51: GE核酸分子生物学产品 | B51: 27926401 | C51: RTG YOU-PRIME FIRST-STRAND BEADS | D51: ¥4,279.28 | E51: □
A52: Biacore | B52: 28953828 | C52: Series S Sensor chip CM7 | D52: ¥4,387.38 | E52: □
A53: GE蛋白纯化凝胶产品 | B53: 28918008 | C53: PD MidiTrap G-25 | D53: ¥4,414.41 | E53: □
A54: Biacore | B54: 29104992 | C54: Series S Sensor Chip SA-1-pack | D54: ¥4,432.43 | E54: □
A55: GE蛋白纯化凝胶产品 | B55: 28918007 | C55: PD MiniTrap G-25 | D55: ¥4,441.44 | E55: □
A56: GE蛋白纯化凝胶产品 | B56: 28989858 | C56: Packing Reservoir RK 16/26 | D56: ¥4,477.47 | E56: □
A57: GE蛋白纯化凝胶产品 | B57: 17018001 | C57: DEAE-SEPHADEX A-50 100 G | D57: ¥4,531.53 | E57: □
A58: GE蛋白纯化凝胶产品 | B58: 17043001 | C58: CNBR ACTIVATED SEPHAROSE 4B 15 G | D58: ¥4,585.58 | E58: □
A59: Biacore | B59: BR100669 | C59: HBS-EP+ 10 x | D59: ¥4,603.60 | E59: □
A60: Biacore | B60: BR100671 | C60: HBS-P+ 10 x | D60: ¥4,603.60 | E60: □
A61: Biacore | B61: BR100670 | C61: HBS-N 10 x | D61: ¥4,603.60 | E61: □
A62: GE蛋白纯化凝胶产品 | B62: 17096901 | C62: IGG SEPHAROSE 6 FAST FLOW 10 ML | D62: ¥4,621.62 | E62: □
A63: GE核酸分子生物学产品 | B63: 17085202 | C63: NAP-25 50 ST | D63: ¥4,630.63 | E63: □
A64: GE蛋白纯化凝胶产品 | B64: 18111244 | C64: ONLINE FILTER HOLDER,100ML/MIN | D64: ¥4,648.64 | E64: □
A65: GE蛋白纯化凝胶产品 | B65: 17004101 | C65: SEPHADEX G-50 SUPERFINE 100 G | D65: ¥4,666.66 | E65: □
A66: Xuri细胞培养袋 | B66: 29108443 | C66: #N/A | D66: ¥4,897.81 | E66: □
A67: GE核酸分子生物学产品 | B67: 25660031 | C67: GENOMIPHI V2 DNA AMP KIT 100RX | D67: ¥4,913.33 | E67: □
A68: GE蛋白纯化凝胶产品 | B68: 17511301 | C68: STREPTAVIDIN SEPHAROSE HP,5 ML | D68: ¥4,945.94 | E68: □
A69: GE蛋白纯化凝胶产品 | B69: 17051001 | C69: Q SEPHAROSE FAST FLOW 300 ML | D69: ¥4,990.99 | E69: □
A70: GE蛋白纯化凝胶产品 | B70: 17072901 | C70: SP SEPHAROSE FAST FLOW, 300 ML | D70: ¥4,990.99 | E70: □
A71: Biacore | B71: 28975816 | C71: Microplate Foils (96 well) | D71: ¥5,045.04 | E71: □
A72: GE蛋白纯化凝胶产品 | B72: 17519501 | C72: HITRAP PHENYL HP, 5 X 5 ML | D72: ¥5,072.07 | E72: □
C74: 总计赠品金额
C75: 总计采购金额
B77: 请您确认以下信息：
B78: □ | C78: 以上赠品一经送出，如无质量问题，将不能调换或退货。
C80: 课题组负责人签字
C81: 日期

Sheet 第三档
A1: 单位/课题组 | C1: 销售代理商 | D1: GEHC销售确认
A2: 第三档赠品清单
A3: Row Labels | B3: 产品货号 | C3: PG DIS | D3: 人民币含税目录价 | E3: 客户勾选
A4: GE蛋白纯化凝胶产品 | B4: 17078001 | C4: PROTEIN A-SEPHAROSE CL-4B 1.5G | D4: ¥5,243.24 | E4: □
A5: GE蛋白纯化凝胶产品 | B5: 28907547 | C5: StrepTrap HP 1 x 5mL | D5: ¥5,270.27 | E5: □
A6: GE蛋白纯化凝胶产品 | B6: 17009001 | C6: SEPHADEX LH-20 100 G | D6: ¥5,378.37 | E6: □
A7: Amersham 蛋白免疫印迹 | B7: RPN2236 | C7: ECL Prime Western blot detection reagent | D7: ¥5,396.39 | E7: □
A8: GE蛋白纯化凝胶产品 | B8: 17528001 | C8: NPROTEIN A SEPHAROSE 4 FF 5ML | D8: ¥5,513.51 | E8: □
A9: Biacore | B9: BR100012 | C9: Sensor Chip CM5 | D9: ¥5,639.63 | E9: □
A10: GE蛋白纯化凝胶产品 | B10: 17006001 | C10: SEPHADEX G-100 100 G | D10: ¥5,684.68 | E10: □
A11: 磁珠 | B11: 65152105050250 | C11: SpeedBead carboxylate, 15mL | D11: ¥5,789.18 | E11: □
A12: GE蛋白纯化凝胶产品 | B12: 17127901 | C12: RPROTEIN A SEPHAROSE FF 5 ML | D12: ¥5,819.81 | E12: □
A13: GE蛋白纯化凝胶产品 | B13: 17040301 | C13: HITRAP PROTEIN A HP,1 X 5 ML | D13: ¥5,873.87 | E13: □
A14: GE蛋白纯化凝胶产品 | B14: 17061801 | C14: PROTEIN G SEPHAROSE 4 FF, 5 ML | D14: ¥5,990.99 | E14: □
A15: GE蛋白纯化凝胶产品 | B15: 17081001 | C15: PHENYL-SEPHAROSE CL-4B 200 ML | D15: ¥6,045.04 | E15: □
A16: GE蛋白纯化凝胶产品 | B16: 17600235 | C16: IMMUNOPRECIP STARTER PACK | D16: ¥6,072.07 | E16: □
A17: GE蛋白纯化凝胶产品 | B17: 17070901 | C17: DEAE SEPHAROSE FAST FLOW 500 ML | D17: ¥6,108.10 | E17: □
A18: GE蛋白纯化凝胶产品 | B18: 17525501 | C18: HISTRAP FF 5 X 5 ML | D18: ¥6,144.14 | E18: □
A19: GE蛋白纯化凝胶产品 | B19: 17040501 | C19: HITRAP PROTEIN G HP,1 X 5 ML | D19: ¥6,171.17 | E19: □
A20: GE蛋白纯化凝胶产品 | B20: 17071901 | C20: CM SEPHAROSE FAST FLOW 500 ML | D20: ¥6,252.25 | E20: □
A21: Biacore | B21: 28994951 | C21: Series S Sensor Chip NTA, 1-pack | D21: ¥6,270.26 | E21: □
A22: GE蛋白纯化凝胶产品 | B22: 17040201 | C22: HITRAP PROTEIN A HP, 5 X 1 ML | D22: ¥6,270.26 | E22: □
A23: GE蛋白纯化凝胶产品 | B23: 17513201 | C23: GLUTATHIONE SEPHAROSE 4FF,25ML | D23: ¥6,279.27 | E23: □
A24: Biacore | B24: BR100530 | C24: Series S Sensor Chip CM5 | D24: ¥6,306.30 | E24: □
A25: GE蛋白纯化凝胶产品 | B25: 28406409 | C25: TRICORN 5/50 COLUMN | D25: ¥6,324.32 | E25: □
A26: 细胞密度梯度分离介质 | B26: 17144003 | C26: FICOLL PAQUE PLUS 6X500 ML | D26: ¥6,378.37 | E26: □
A27: Biacore | B27: BR100839 | C27: Human Antibody Capture Kit | D27: ¥6,477.47 | E27: □
A28: GE蛋白纯化凝胶产品 | B28: 17099801 | C28: HEPARIN SEPHAROSE 6 FF,50 ML | D28: ¥6,540.53 | E28: □
A29: GE蛋白纯化凝胶产品 | B29: 28988937 | C29: XK 16/20 column | D29: ¥6,585.58 | E29: □
A30: GE蛋白纯化凝胶产品 | B30: 17548102 | C30: Capto Core 700, 100 mL | D30: ¥6,648.64 | E30: □
A31: 细胞密度梯度分离介质 | B31: 17544203 | C31: FICOLL PAQUE PREMIUM 6X500ML | D31: ¥6,774.77 | E31: □
A32: GE蛋白纯化凝胶产品 | B32: 17524802 | C32: HISTRAP HP 5 X 5 ML | D32: ¥6,783.78 | E32: □
A33: GE蛋白纯化凝胶产品 | B33: 28403842 | C33: GEL FILTRATION CAL KIT HMW | D33: ¥6,891.89 | E33: □
A34: GE蛋白纯化凝胶产品 | B34: 28403841 | C34: GEL FILTRATION CAL KIT LMW | D34: ¥6,891.89 | E34: □
A35: Biacore | B35: BR100556 | C35: Regeneration Scouting Kit | D35: ¥7,036.03 | E35: □
A36: GE蛋白纯化凝胶产品 | B36: 17528601 | C36: HISTRAP FF CRUDE 5X5 ML | D36: ¥7,072.07 | E36: □
A37: GE蛋白纯化凝胶产品 | B37: 17040401 | C37: HITRAP PROTEIN G HP, 5 X 1 ML | D37: ¥7,144.14 | E37: □
C39: 总计赠品金额
C40: 总计采购金额
B42: 请您确认以下信息：
B43: □ | C43: 以上赠品一经送出，如无质量问题，将不能调换或退货。
C45: 课题组负责人签字
C46: 日期

Sheet 消耗品客户报价表(2018.8.20更新) (hidden)
A1: No. | B1: Product No. | C1: Part | D1: Description | E1: 2018 Modality | F1: 2018 PC | G1: 2018 PC Disc | H1: 2018 PG | I1: 2018 PG Disc | J1: 2018 China LLP (USD) | K1: 2018 China LLP (RMB) | L1: Remark | M1: Status | N1: Shipping Conditions | O1: Dangerous Goods
A2: 1 | B2: 17044801 | C2: 17044801 | D2: CYTODEX 1 25 G | E2: 021 | F2: 12 | G2: MICROCARRIERS | H2: 274 | I2: Microcarriers | J2: =K2/9.009 -> 502 | K2: 4,523 | M2: =VLOOKUP(B2,'[1]2018.7 '!A:C,3,) -> Active | N2: =VLOOKUP(B2,'[1]2018.7 '!A:M,13,) -> Ambient | O2: =VLOOKUP(B2,'[1]2018.7 '!A:N,14,) -> No
A3: 2 | B3: 17044802 | C3: 17044802 | D3: CYTODEX 1 100 G | E3: 021 | F3: 12 | G3: MICROCARRIERS | H3: 274 | I3: Microcarriers | J3: =K3/9.009 -> 1,167 | K3: 10,514 | M3: =VLOOKUP(B3,'[1]2018.7 '!A:C,3,) -> Active | N3: =VLOOKUP(B3,'[1]2018.7 '!A:M,13,) -> Ambient | O3: =VLOOKUP(B3,'[1]2018.7 '!A:N,14,) -> No
A4: 3 | B4: 17044803 | C4: 17044803 | D4: CYTODEX 1 500 G | E4: 021 | F4: 12 | G4: MICROCARRIERS | H4: 274 | I4: Microcarriers | J4: 4,228 | K4: 38,090 | M4: =VLOOKUP(B4,'[1]2018.7 '!A:C,3,) -> Active | N4: =VLOOKUP(B4,'[1]2018.7 '!A:M,13,) -> Ambient | O4: =VLOOKUP(B4,'[1]2018.7 '!A:N,14,) -> No
A5: 4 | B5: 17048501 | C5: 17048501 | D5: CYTODEX 3 10 G | E5: 021 | F5: 12 | G5: MICROCARRIERS | H5: 274 | I5: Microcarriers | J5: 242 | K5: 2,180 | M5: =VLOOKUP(B5,'[1]2018.7 '!A:C,3,) -> Active | N5: =VLOOKUP(B5,'[1]2018.7 '!A:M,13,) -> Ambient | O5: =VLOOKUP(B5,'[1]2018.7 '!A:N,14,) -> No
A6: 5 | B6: 17048502 | C6: 17048502 | D6: CYTODEX 3 100 G | E6: 021 | F6: 12 | G6: MICROCARRIERS | H6: 274 | I6: Microcarriers | J6: 1,259 | K6: 11,342 | M6: =VLOOKUP(B6,'[1]2018.7 '!A:C,3,) -> Active | N6: =VLOOKUP(B6,'[1]2018.7 '!A:M,13,) -> Ambient | O6: =VLOOKUP(B6,'[1]2018.7 '!A:N,14,) -> No
A7: 6 | B7: 17048503 | C7: 17048503 | D7: CYTODEX 3 500 G | E7: 021 | F7: 12 | G7: MICROCARRIERS | H7: 274 | I7: Microcarriers | J7: 4,753 | K7: 42,820 | M7: =VLOOKUP(B7,'[1]2018.7 '!A:C,3,) -> Active | N7: =VLOOKUP(B7,'[1]2018.7 '!A:M,13,) -> Ambient | O7: =VLOOKUP(B7,'[1]2018.7 '!A:N,14,) -> No
A8: 7 | B8: 17091101 | C8: 17091101 | D8: CYTOPORE 1 20 G CYTOCELL | E8: 021 | F8: 12 | G8: MICROCARRIERS | H8: 274 | I8: Microcarriers | J8: 1,165 | K8: 10,495 | M8: =VLOOKUP(B8,'[1]2018.7 '!A:C,3,) -> Active | N8: =VLOOKUP(B8,'[1]2018.7 '!A:M,13,) -> Ambient | O8: =VLOOKUP(B8,'[1]2018.7 '!A:N,14,) -> No
A9: 8 | B9: 17091102 | C9: 17091102 | D9: CYTOPORE 1 100 G (CYTOCELL) | E9: 021 | F9: 12 | G9: MICROCARRIERS | H9: 274 | I9: Microcarriers | J9: 5,794 | K9: 52,198 | M9: =VLOOKUP(B9,'[1]2018.7 '!A:C,3,) -> Active | N9: =VLOOKUP(B9,'[1]2018.7 '!A:M,13,) -> Ambient | O9: =VLOOKUP(B9,'[1]2018.7 '!A:N,14,) -> Reviewing
A10: 9 | B10: 17127101 | C10: 17127101 | D10: CYTOPORE 2 20 G | E10: 021 | F10: 12 | G10: MICROCARRIERS | H10: 274 | I10: Microcarriers | J10: 1,200 | K10: 10,811 | M10: =VLOOKUP(B10,'[1]2018.7 '!A:C,3,) -> Active | N10: =VLOOKUP(B10,'[1]2018.7 '!A:M,13,) -> Ambient | O10: =VLOOKUP(B10,'[1]2018.7 '!A:N,14,) -> No
A11: 10 | B11: 17127102 | C11: 17127102 | D11: CYTOPORE 2 100 G | E11: 021 | F11: 12 | G11: MICROCARRIERS | H11: 274 | I11: Microcarriers | J11: 5,794 | K11: 52,198 | M11: =VLOOKUP(B11,'[1]2018.7 '!A:C,3,) -> Active | N11: =VLOOKUP(B11,'[1]2018.7 '!A:M,13,) -> Ambient | O11: =VLOOKUP(B11,'[1]2018.7 '!A:N,14,) -> No
A12: 11 | B12: 18100062 | C12: 18100062 | D12: QUARTZ GLASS ASSEMBLY, 2 MM PATH LE | E12: 021 | F12: 13 | G12: STD BIOPROCESS CHROM HW | H12: 250 | I12: Std AKTApilot | J12: 778 | K12: 7,009 | M12: =VLOOKUP(B12,'[1]2018.7 '!A:C,3,) -> Active | N12: =VLOOKUP(B12,'[1]2018.7 '!A:M,13,) -> Ambient | O12: =VLOOKUP(B12,'[1]2018.7 '!A:N,14,) -> Reviewing
A13: 12 | B13: 18100063 | C13: 18100063 | D13: QUARTZ GLASS ASSEMBLY, 10 MM PATH L | E13: 021 | F13: 13 | G13: STD BIOPROCESS CHROM HW | H13: 250 | I13: Std AKTApilot | J13: 778 | K13: 7,009 | M13: =VLOOKUP(B13,'[1]2018.7 '!A:C,3,) -> Active | N13: =VLOOKUP(B13,'[1]2018.7 '!A:M,13,) -> Ambient | O13: =VLOOKUP(B13,'[1]2018.7 '!A:N,14,) -> Reviewing
A14: 13 | B14: 18100064 | C14: 18100064 | D14: QUARTZ GLASS ASSEMBLY, 5 MM PATH LE | E14: 021 | F14: 13 | G14: STD BIOPROCESS CHROM HW | H14: 250 | I14: Std AKTApilot | J14: 778 | K14: 7,009 | M14: =VLOOKUP(B14,'[1]2018.7 '!A:C,3,) -> Active | N14: =VLOOKUP(B14,'[1]2018.7 '!A:M,13,) -> Ambient | O14: =VLOOKUP(B14,'[1]2018.7 '!A:N,14,) -> No
A15: 14 | B15: 18100065 | C15: 18100065 | D15: UV FLOW CELL INDUSTR 10MM SS | E15: 021 | F15: 13 | G15: STD BIOPROCESS CHROM HW | H15: 250 | I15: Std AKTApilot | J15: 4,248 | K15: 38,270 | M15: =VLOOKUP(B15,'[1]2018.7 '!A:C,3,) -> Active | N15: =VLOOKUP(B15,'[1]2018.7 '!A:M,13,) -> Ambient | O15: =VLOOKUP(B15,'[1]2018.7 '!A:N,14,) -> No
A16: 15 | B16: 18100066 | C16: 18100066 | D16: UV FLOW CELL INDUSTR. 6MM SS | E16: 021 | F16: 13 | G16: STD BIOPROCESS CHROM HW | H16: 250 | I16: Std AKTApilot | J16: 4,029 | K16: 36,297 | M16: =VLOOKUP(B16,'[1]2018.7 '!A:C,3,) -> Active | N16: =VLOOKUP(B16,'[1]2018.7 '!A:M,13,) -> Ambient | O16: =VLOOKUP(B16,'[1]2018.7 '!A:N,14,) -> No
A17: 16 | B17: 18102958 | C17: 18102958 | D17: MOVABLE SEAL W. VALVE SUPERLOOP 150 | E17: 021 | F17: 46 | G17: PURIFICATION SYSTEMS | H17: 099 | I17: AKTA Accessories pure and avant | J17: 418 | K17: 3,766 | M17: =VLOOKUP(B17,'[1]2018.7 '!A:C,3,) -> Active | N17: =VLOOKUP(B17,'[1]2018.7 '!A:M,13,) -> Ambient | O17: =VLOOKUP(B17,'[1]2018.7 '!A:N,14,) -> No
A18: 17 | B18: 18102960 | C18: 18102960 | D18: O-RING INNER END PIECE SUPERLOOP 150 | E18: 021 | F18: 46 | G18: PURIFICATION SYSTEMS | H18: 099 | I18: AKTA Accessories pure and avant | J18: 39 | K18: 351 | M18: =VLOOKUP(B18,'[1]2018.7 '!A:C,3,) -> Active | N18: =VLOOKUP(B18,'[1]2018.7 '!A:M,13,) -> Ambient | O18: =VLOOKUP(B18,'[1]2018.7 '!A:N,14,) -> No
A19: 18 | B19: 18103220 | C19: 18103220 | D19: GLASS TUBE SUPERLOOP 150 ML | E19: 021 | F19: 46 | G19: PURIFICATION SYSTEMS | H19: 099 | I19: AKTA Accessories pure and avant | J19: 617 | K19: 5,559 | M19: =VLOOKUP(B19,'[1]2018.7 '!A:C,3,) -> Active | N19: =VLOOKUP(B19,'[1]2018.7 '!A:M,13,) -> Ambient | O19: =VLOOKUP(B19,'[1]2018.7 '!A:N,14,) -> No
A20: 19 | B20: 18110497 | C20: 18110497 | D20: O-RING 11.3 X 2.4 FFPM/FFKM | E20: 021 | F20: 13 | G20: STD BIOPROCESS CHROM HW | H20: 250 | I20: Std AKTApilot | J20: 181 | K20: 1,631 | M20: =VLOOKUP(B20,'[1]2018.7 '!A:C,3,) -> Active | N20: =VLOOKUP(B20,'[1]2018.7 '!A:M,13,) -> Ambient | O20: =VLOOKUP(B20,'[1]2018.7 '!A:N,14,) -> No
A21: 20 | B21: 18113695 | C21: 18113695 | D21: SOLVENT RESERVOIR INLET FILTER | E21: 021 | F21: 13 | G21: STD BIOPROCESS CHROM HW | H21: 250 | I21: Std AKTApilot | J21: 156 | K21: 1,405 | M21: =VLOOKUP(B21,'[1]2018.7 '!A:C,3,) -> Active | N21: =VLOOKUP(B21,'[1]2018.7 '!A:M,13,) -> Ambient | O21: =VLOOKUP(B21,'[1]2018.7 '!A:N,14,) -> Reviewing
A22: 21 | B22: 18115954 | C22: 18115954 | D22: AKTAPILOT AIRSENSOR CELL940 | E22: 021 | F22: 13 | G22: STD BIOPROCESS CHROM HW | H22: 250 | I22: Std AKTApilot | J22: 1,232 | K22: 11,099 | M22: =VLOOKUP(B22,'[1]2018.7 '!A:C,3,) -> Active | N22: =VLOOKUP(B22,'[1]2018.7 '!A:M,13,) -> Ambient | O22: =VLOOKUP(B22,'[1]2018.7 '!A:N,14,) -> No
A23: 22 | B23: 18116295 | C23: 18116295 | D23: AKTApilot Instrument Handbook. | E23: 021 | F23: 13 | G23: STD BIOPROCESS CHROM HW | H23: 250 | I23: Std AKTApilot | J23: 48 | K23: 432 | M23: =VLOOKUP(B23,'[1]2018.7 '!A:C,3,) -> Active | N23: =VLOOKUP(B23,'[1]2018.7 '!A:M,13,) -> Ambient | O23: =VLOOKUP(B23,'[1]2018.7 '!A:N,14,) -> Reviewing
A24: 23 | B24: 18116768 | C24: 18116768 | D24: AKTAPILOT TUBING KIT COLUMN | E24: 021 | F24: 13 | G24: STD BIOPROCESS CHROM HW | H24: 250 | I24: Std AKTApilot | J24: 1,097 | K24: 9,883 | M24: =VLOOKUP(B24,'[1]2018.7 '!A:C,3,) -> Active | N24: =VLOOKUP(B24,'[1]2018.7 '!A:M,13,) -> Ambient | O24: =VLOOKUP(B24,'[1]2018.7 '!A:N,14,) -> No
A25: 24 | B25: 18116770 | C25: 18116770 | D25: AKTAPILOT AIRSENSOR CELL925 | E25: 021 | F25: 13 | G25: STD BIOPROCESS CHROM HW | H25: 250 | I25: Std AKTApilot | J25: 879 | K25: 7,919 | M25: =VLOOKUP(B25,'[1]2018.7 '!A:C,3,) -> Active | N25: =VLOOKUP(B25,'[1]2018.7 '!A:M,13,) -> Ambient | O25: =VLOOKUP(B25,'[1]2018.7 '!A:N,14,) -> No
A26: 25 | B26: 18116877 | C26: 18116877 | D26: PH ELECTRODE AKTAPILOT | E26: 021 | F26: 13 | G26: STD BIOPROCESS CHROM HW | H26: 250 | I26: Std AKTApilot | J26: 787 | K26: 7,090 | M26: =VLOOKUP(B26,'[1]2018.7 '!A:C,3,) -> Active | N26: =VLOOKUP(B26,'[1]2018.7 '!A:M,13,) -> Ambient | O26: =VLOOKUP(B26,'[1]2018.7 '!A:N,14,) -> No
A27: 26 | B27: 18116883 | C27: 18116883 | D27: UV CELL 1/2/5 MM AKTAPILOT | E27: 021 | F27: 13 | G27: STD BIOPROCESS CHROM HW | H27: 250 | I27: Std AKTApilot | J27: 1,879 | K27: 16,928 | M27: =VLOOKUP(B27,'[1]2018.7 '!A:C,3,) -> Active | N27: =VLOOKUP(B27,'[1]2018.7 '!A:M,13,) -> Ambient | O27: =VLOOKUP(B27,'[1]2018.7 '!A:N,14,) -> No
A28: 27 | B28: 18116884 | C28: 18116884 | D28: SHIM PLATE 2 MM AKTAPILOT | E28: 021 | F28: 13 | G28: STD BIOPROCESS CHROM HW | H28: 250 | I28: Std AKTApilot | J28: 129 | K28: 1,162 | M28: =VLOOKUP(B28,'[1]2018.7 '!A:C,3,) -> Active | N28: =VLOOKUP(B28,'[1]2018.7 '!A:M,13,) -> Ambient | O28: =VLOOKUP(B28,'[1]2018.7 '!A:N,14,) -> No
A29: 28 | B29: 18116898 | C29: 18116898 | D29: MIXER CHAMB 5ML 5/16in APILOT | E29: 021 | F29: 13 | G29: STD BIOPROCESS CHROM HW | H29: 250 | I29: Std AKTApilot | J29: 568 | K29: 5,117 | M29: =VLOOKUP(B29,'[1]2018.7 '!A:C,3,) -> Active | N29: =VLOOKUP(B29,'[1]2018.7 '!A:M,13,) -> Ambient | O29: =VLOOKUP(B29,'[1]2018.7 '!A:N,14,) -> No
A30: 29 | B30: 18116900 | C30: 18116900 | D30: COND CELL I.D.2,5MM AKTAPILOT | E30: 021 | F30: 13 | G30: STD BIOPROCESS CHROM HW | H30: 250 | I30: Std AKTApilot | J30: 943 | K30: 8,495 | M30: =VLOOKUP(B30,'[1]2018.7 '!A:C,3,) -> Active | N30: =VLOOKUP(B30,'[1]2018.7 '!A:M,13,) -> Ambient | O30: =VLOOKUP(B30,'[1]2018.7 '!A:N,14,) -> No
A31: 30 | B31: 18116901 | C31: 18116901 | D31: AKTAPILOT CONNECTBLOCK V1 | E31: 021 | F31: 13 | G31: STD BIOPROCESS CHROM HW | H31: 250 | I31: Std AKTApilot | J31: 941 | K31: 8,477 | M31: =VLOOKUP(B31,'[1]2018.7 '!A:C,3,) -> Active | N31: =VLOOKUP(B31,'[1]2018.7 '!A:M,13,) -> Ambient | O31: =VLOOKUP(B31,'[1]2018.7 '!A:N,14,) -> No
A32: 31 | B32: 18116902 | C32: 18116902 | D32: AKTAPILOT CONNECTBLOCK V2 | E32: 021 | F32: 13 | G32: STD BIOPROCESS CHROM HW | H32: 250 | I32: Std AKTApilot | J32: 911 | K32: 8,207 | M32: =VLOOKUP(B32,'[1]2018.7 '!A:C,3,) -> Active | N32: =VLOOKUP(B32,'[1]2018.7 '!A:M,13,) -> Ambient | O32: =VLOOKUP(B32,'[1]2018.7 '!A:N,14,) -> No
A33: 32 | B33: 18116903 | C33: 18116903 | D33: AKTAPILOT CONNECTBLOCK V3 | E33: 021 | F33: 13 | G33: STD BIOPROCESS CHROM HW | H33: 250 | I33: Std AKTApilot | J33: 911 | K33: 8,207 | M33: =VLOOKUP(B33,'[1]2018.7 '!A:C,3,) -> Active | N33: =VLOOKUP(B33,'[1]2018.7 '!A:M,13,) -> Ambient | O33: =VLOOKUP(B33,'[1]2018.7 '!A:N,14,) -> No
A34: 33 | B34: 18116904 | C34: 18116904 | D34: AKTAPILOT CONNECTBLOCK V4 | E34: 021 | F34: 13 | G34: STD BIOPROCESS CHROM HW | H34: 250 | I34: Std AKTApilot | J34: 941 | K34: 8,477 | M34: =VLOOKUP(B34,'[1]2018.7 '!A:C,3,) -> Active | N34: =VLOOKUP(B34,'[1]2018.7 '!A:M,13,) -> Ambient | O34: =VLOOKUP(B34,'[1]2018.7 '!A:N,14,) -> No
A35: 34 | B35: 18116905 | C35: 18116905 | D35: AKTAPILOT CONNECTBLOCK V5 | E35: 021 | F35: 13 | G35: STD BIOPROCESS CHROM HW | H35: 250 | I35: Std AKTApilot | J35: 911 | K35: 8,207 | M35: =VLOOKUP(B35,'[1]2018.7 '!A:C,3,) -> Active | N35: =VLOOKUP(B35,'[1]2018.7 '!A:M,13,) -> Ambient | O35: =VLOOKUP(B35,'[1]2018.7 '!A:N,14,) -> No
A36: 35 | B36: 18116906 | C36: 18116906 | D36: AKTAPILOT CONNECTBLOCK V6 | E36: 021 | F36: 13 | G36: STD BIOPROCESS CHROM HW | H36: 250 | I36: Std AKTApilot | J36: 911 | K36: 8,207 | M36: =VLOOKUP(B36,'[1]2018.7 '!A:C,3,) -> Active | N36: =VLOOKUP(B36,'[1]2018.7 '!A:M,13,) -> Ambient | O36: =VLOOKUP(B36,'[1]2018.7 '!A:N,14,) -> No
A37: 36 | B37: 18116907 | C37: 18116907 | D37: AKTAPILOT CONNECTBLOCK V7 | E37: 021 | F37: 13 | G37: STD BIOPROCESS CHROM HW | H37: 250 | I37: Std AKTApilot | J37: 911 | K37: 8,207 | M37: =VLOOKUP(B37,'[1]2018.7 '!A:C,3,) -> Active | N37: =VLOOKUP(B37,'[1]2018.7 '!A:M,13,) -> Ambient | O37: =VLOOKUP(B37,'[1]2018.7 '!A:N,14,) -> No
A38: 37 | B38: 18116908 | C38: 18116908 | D38: AKTAPILOT CONNECTBLOCK V8 | E38: 021 | F38: 13 | G38: STD BIOPROCESS CHROM HW | H38: 250 | I38: Std AKTApilot | J38: 911 | K38: 8,207 | M38: =VLOOKUP(B38,'[1]2018.7 '!A:C,3,) -> Active | N38: =VLOOKUP(B38,'[1]2018.7 '!A:M,13,) -> Ambient | O38: =VLOOKUP(B38,'[1]2018.7 '!A:N,14,) -> No
A39: 38 | B39: 18116909 | C39: 18116909 | D39: AKTAPILOT CONNECTBLOCK V9 | E39: 021 | F39: 13 | G39: STD BIOPROCESS CHROM HW | H39: 250 | I39: Std AKTApilot | J39: 911 | K39: 8,207 | M39: =VLOOKUP(B39,'[1]2018.7 '!A:C,3,) -> Active | N39: =VLOOKUP(B39,'[1]2018.7 '!A:M,13,) -> Ambient | O39: =VLOOKUP(B39,'[1]2018.7 '!A:N,14,) -> No
A40: 39 | B40: 18116910 | C40: 18116910 | D40: AKTAPILOT VALVE MEMBRANE CPL | E40: 021 | F40: 13 | G40: STD BIOPROCESS CHROM HW | H40: 250 | I40: Std AKTApilot | J40: 280 | K40: 2,523 | M40: =VLOOKUP(B40,'[1]2018.7 '!A:C,3,) -> Active | N40: =VLOOKUP(B40,'[1]2018.7 '!A:M,13,) -> Ambient | O40: =VLOOKUP(B40,'[1]2018.7 '!A:N,14,) -> No
A41: 40 | B41: 18116911 | C41: 18116911 | D41: DUMMY PH ELECTRODE AKTAPILOT | E41: 021 | F41: 13 | G41: STD BIOPROCESS CHROM HW | H41: 250 | I41: Std AKTApilot | J41: 142 | K41: 1,279 | M41: =VLOOKUP(B41,'[1]2018.7 '!A:C,3,) -> Active | N41: =VLOOKUP(B41,'[1]2018.7 '!A:M,13,) -> Ambient | O41: =VLOOKUP(B41,'[1]2018.7 '!A:N,14,) -> No
A42: 41 | B42: 18116912 | C42: 18116912 | D42: AKTAPILOT O-RING 3X1 | E42: 021 | F42: 13 | G42: STD BIOPROCESS CHROM HW | H42: 250 | I42: Std AKTApilot | J42: 786 | K42: 7,081 | M42: =VLOOKUP(B42,'[1]2018.7 '!A:C,3,) -> Active | N42: =VLOOKUP(B42,'[1]2018.7 '!A:M,13,) -> Ambient | O42: =VLOOKUP(B42,'[1]2018.7 '!A:N,14,) -> No
A43: 42 | B43: 18116918 | C43: 18116918 | D43: CLAMP TC 25 AKTAPILOT | E43: 021 | F43: 13 | G43: STD BIOPROCESS CHROM HW | H43: 250 | I43: Std AKTApilot | J43: 337 | K43: 3,036 | M43: =VLOOKUP(B43,'[1]2018.7 '!A:C,3,) -> Active | N43: =VLOOKUP(B43,'[1]2018.7 '!A:M,13,) -> Ambient | O43: =VLOOKUP(B43,'[1]2018.7 '!A:N,14,) -> No
A44: 43 | B44: 18116919 | C44: 18116919 | D44: AKTAPILOT ELBOW 90 TC25 SHORT | E44: 021 | F44: 13 | G44: STD BIOPROCESS CHROM HW | H44: 250 | I44: Std AKTApilot | J44: 181 | K44: 1,631 | M44: =VLOOKUP(B44,'[1]2018.7 '!A:C,3,) -> Active | N44: =VLOOKUP(B44,'[1]2018.7 '!A:M,13,) -> Ambient | O44: =VLOOKUP(B44,'[1]2018.7 '!A:N,14,) -> No
A45: 44 | B45: 18116920 | C45: 18116920 | D45: AKTAPILOT ELBOW90 TC25OPE LONG | E45: 021 | F45: 13 | G45: STD BIOPROCESS CHROM HW | H45: 250 | I45: Std AKTApilot | J45: 639 | K45: 5,757 | M45: =VLOOKUP(B45,'[1]2018.7 '!A:C,3,) -> Active | N45: =VLOOKUP(B45,'[1]2018.7 '!A:M,13,) -> Ambient | O45: =VLOOKUP(B45,'[1]2018.7 '!A:N,14,) -> No
A46: 45 | B46: 18116921 | C46: 18116921 | D46: INLET TC CONNECT KIT AKTAPILOT | E46: 021 | F46: 13 | G46: STD BIOPROCESS CHROM HW | H46: 250 | I46: Std AKTApilot | J46: 305 | K46: 2,748 | M46: =VLOOKUP(B46,'[1]2018.7 '!A:C,3,) -> Active | N46: =VLOOKUP(B46,'[1]2018.7 '!A:M,13,) -> Ambient | O46: =VLOOKUP(B46,'[1]2018.7 '!A:N,14,) -> No
A47: 46 | B47: 18116924 | C47: 18116924 | D47: TC GASKET 25/4 AKTAPILOT | E47: 021 | F47: 13 | G47: STD BIOPROCESS CHROM HW | H47: 250 | I47: Std AKTApilot | J47: 301 | K47: 2,712 | M47: =VLOOKUP(B47,'[1]2018.7 '!A:C,3,) -> Active | N47: =VLOOKUP(B47,'[1]2018.7 '!A:M,13,) -> Ambient | O47: =VLOOKUP(B47,'[1]2018.7 '!A:N,14,) -> No
A48: 47 | B48: 18116925 | C48: 18116925 | D48: TC GASKET 25/6,5 AKTAPILOT | E48: 021 | F48: 13 | G48: STD BIOPROCESS CHROM HW | H48: 250 | I48: Std AKTApilot | J48: 541 | K48: 4,874 | M48: =VLOOKUP(B48,'[1]2018.7 '!A:C,3,) -> Active | N48: =VLOOKUP(B48,'[1]2018.7 '!A:M,13,) -> Ambient | O48: =VLOOKUP(B48,'[1]2018.7 '!A:N,14,) -> No
A49: 48 | B49: 18116958 | C49: 18116958 | D49: AKTAPILOT AIR INLET FILTER | E49: 021 | F49: 13 | G49: STD BIOPROCESS CHROM HW | H49: 250 | I49: Std AKTApilot | J49: 156 | K49: 1,405 | M49: =VLOOKUP(B49,'[1]2018.7 '!A:C,3,) -> Active | N49: =VLOOKUP(B49,'[1]2018.7 '!A:M,13,) -> Ambient | O49: =VLOOKUP(B49,'[1]2018.7 '!A:N,14,) -> No
A50: 49 | B50: 18116959 | C50: 18116959 | D50: AKTAPILOT TUBE S1 CPL | E50: 021 | F50: 13 | G50: STD BIOPROCESS CHROM HW | H50: 250 | I50: Std AKTApilot | J50: 196 | K50: 1,766 | M50: =VLOOKUP(B50,'[1]2018.7 '!A:C,3,) -> Active | N50: =VLOOKUP(B50,'[1]2018.7 '!A:M,13,) -> Ambient | O50: =VLOOKUP(B50,'[1]2018.7 '!A:N,14,) -> No
A51: 50 | B51: 18116966 | C51: 18116966 | D51: AKTAPILOT TUBE S2 CPL | E51: 021 | F51: 13 | G51: STD BIOPROCESS CHROM HW | H51: 250 | I51: Std AKTApilot | J51: 202 | K51: 1,820 | M51: =VLOOKUP(B51,'[1]2018.7 '!A:C,3,) -> Active | N51: =VLOOKUP(B51,'[1]2018.7 '!A:M,13,) -> Ambient | O51: =VLOOKUP(B51,'[1]2018.7 '!A:N,14,) -> No
A52: 51 | B52: 18116967 | C52: 18116967 | D52: AKTAPILOT TUBE S3 CPL | E52: 021 | F52: 13 | G52: STD BIOPROCESS CHROM HW | H52: 250 | I52: Std AKTApilot | J52: 207 | K52: 1,865 | M52: =VLOOKUP(B52,'[1]2018.7 '!A:C,3,) -> Active | N52: =VLOOKUP(B52,'[1]2018.7 '!A:M,13,) -> Ambient | O52: =VLOOKUP(B52,'[1]2018.7 '!A:N,14,) -> No
A53: 52 | B53: 18116968 | C53: 18116968 | D53: AKTAPILOT TUBE S4 CPL | E53: 021 | F53: 13 | G53: STD BIOPROCESS CHROM HW | H53: 250 | I53: Std AKTApilot | J53: 207 | K53: 1,865 | M53: =VLOOKUP(B53,'[1]2018.7 '!A:C,3,) -> Active | N53: =VLOOKUP(B53,'[1]2018.7 '!A:M,13,) -> Ambient | O53: =VLOOKUP(B53,'[1]2018.7 '!A:N,14,) -> No
A54: 53 | B54: 18116969 | C54: 18116969 | D54: AKTAPILOT TUBE S5 CPL | E54: 021 | F54: 13 | G54: STD BIOPROCESS CHROM HW | H54: 250 | I54: Std AKTApilot | J54: 207 | K54: 1,865 | M54: =VLOOKUP(B54,'[1]2018.7 '!A:C,3,) -> Active | N54: =VLOOKUP(B54,'[1]2018.7 '!A:M,13,) -> Ambient | O54: =VLOOKUP(B54,'[1]2018.7 '!A:N,14,) -> No
A55: 54 | B55: 18116970 | C55: 18116970 | D55: AKTAPILOT TUBE S6 CPL | E55: 021 | F55: 13 | G55: STD BIOPROCESS CHROM HW | H55: 250 | I55: Std AKTApilot | J55: 207 | K55: 1,865 | M55: =VLOOKUP(B55,'[1]2018.7 '!A:C,3,) -> Active | N55: =VLOOKUP(B55,'[1]2018.7 '!A:M,13,) -> Ambient | O55: =VLOOKUP(B55,'[1]2018.7 '!A:N,14,) -> No
A56: 55 | B56: 18116971 | C56: 18116971 | D56: AKTAPILOT TUBE S7 CPL | E56: 021 | F56: 13 | G56: STD BIOPROCESS CHROM HW | H56: 250 | I56: Std AKTApilot | J56: 241 | K56: 2,171 | M56: =VLOOKUP(B56,'[1]2018.7 '!A:C,3,) -> Active | N56: =VLOOKUP(B56,'[1]2018.7 '!A:M,13,) -> Ambient | O56: =VLOOKUP(B56,'[1]2018.7 '!A:N,14,) -> No
A57: 56 | B57: 18116972 | C57: 18116972 | D57: AKTAPILOT TUBE S10 CPL | E57: 021 | F57: 13 | G57: STD BIOPROCESS CHROM HW | H57: 250 | I57: Std AKTApilot | J57: 202 | K57: 1,820 | M57: =VLOOKUP(B57,'[1]2018.7 '!A:C,3,) -> Active | N57: =VLOOKUP(B57,'[1]2018.7 '!A:M,13,) -> Ambient | O57: =VLOOKUP(B57,'[1]2018.7 '!A:N,14,) -> No
A58: 57 | B58: 18116973 | C58: 18116973 | D58: AKTAPILOT TUBE S12 CPL | E58: 021 | F58: 13 | G58: STD BIOPROCESS CHROM HW | H58: 250 | I58: Std AKTApilot | J58: 202 | K58: 1,820 | M58: =VLOOKUP(B58,'[1]2018.7 '!A:C,3,) -> Active | N58: =VLOOKUP(B58,'[1]2018.7 '!A:M,13,) -> Ambient | O58: =VLOOKUP(B58,'[1]2018.7 '!A:N,14,) -> No
A59: 58 | B59: 18116974 | C59: 18116974 | D59: AKTAPILOT TUBE S13 CPL | E59: 021 | F59: 13 | G59: STD BIOPROCESS CHROM HW | H59: 250 | I59: Std AKTApilot | J59: 214 | K59: 1,928 | M59: =VLOOKUP(B59,'[1]2018.7 '!A:C,3,) -> Active | N59: =VLOOKUP(B59,'[1]2018.7 '!A:M,13,) -> Ambient | O59: =VLOOKUP(B59,'[1]2018.7 '!A:N,14,) -> No
A60: 59 | B60: 18116975 | C60: 18116975 | D60: AKTAPILOT TUBE S8 CPL | E60: 021 | F60: 13 | G60: STD BIOPROCESS CHROM HW | H60: 250 | I60: Std AKTApilot | J60: 241 | K60: 2,171 | M60: =VLOOKUP(B60,'[1]2018.7 '!A:C,3,) -> Active | N60: =VLOOKUP(B60,'[1]2018.7 '!A:M,13,) -> Ambient | O60: =VLOOKUP(B60,'[1]2018.7 '!A:N,14,) -> No
A61: 60 | B61: 18117008 | C61: 18117008 | D61: CONNECTOR TC - 5/16 , SHORT | E61: 021 | F61: 13 | G61: STD BIOPROCESS CHROM HW | H61: 250 | I61: Std AKTApilot | J61: 203 | K61: 1,829 | M61: =VLOOKUP(B61,'[1]2018.7 '!A:C,3,) -> Active | N61: =VLOOKUP(B61,'[1]2018.7 '!A:M,13,) -> Ambient | O61: =VLOOKUP(B61,'[1]2018.7 '!A:N,14,) -> No
A62: 61 | B62: 18117059 | C62: 18117059 | D62: T CONNECTOR 5/16-24 AKTAPILOT | E62: 021 | F62: 13 | G62: STD BIOPROCESS CHROM HW | H62: 250 | I62: Std AKTApilot | J62: 510 | K62: 4,595 | M62: =VLOOKUP(B62,'[1]2018.7 '!A:C,3,) -> Active | N62: =VLOOKUP(B62,'[1]2018.7 '!A:M,13,) -> Ambient | O62: =VLOOKUP(B62,'[1]2018.7 '!A:N,14,) -> No
A63: 62 | B63: 18117060 | C63: 18117060 | D63: AKTAPILOT ELBOW 90 KIT | E63: 021 | F63: 13 | G63: STD BIOPROCESS CHROM HW | H63: 250 | I63: Std AKTApilot | J63: 387 | K63: 3,486 | M63: =VLOOKUP(B63,'[1]2018.7 '!A:C,3,) -> Active | N63: =VLOOKUP(B63,'[1]2018.7 '!A:M,13,) -> Ambient | O63: =VLOOKUP(B63,'[1]2018.7 '!A:N,14,) -> No
A64: 63 | B64: 18117097 | C64: 18117097 | D64: AIR TRAP CPL | E64: 021 | F64: 13 | G64: STD BIOPROCESS CHROM HW | H64: 250 | I64: Std AKTApilot | J64: 2,711 | K64: 24,423 | M64: =VLOOKUP(B64,'[1]2018.7 '!A:C,3,) -> Active | N64: =VLOOKUP(B64,'[1]2018.7 '!A:M,13,) -> Ambient | O64: =VLOOKUP(B64,'[1]2018.7 '!A:N,14,) -> No
A65: 64 | B65: 18117101 | C65: 18117101 | D65: AIR TRAP VENT TUBING | E65: 021 | F65: 13 | G65: STD BIOPROCESS CHROM HW | H65: 250 | I65: Std AKTApilot | J65: 67 | K65: 604 | M65: =VLOOKUP(B65,'[1]2018.7 '!A:C,3,) -> Active | N65: =VLOOKUP(B65,'[1]2018.7 '!A:M,13,) -> Ambient | O65: =VLOOKUP(B65,'[1]2018.7 '!A:N,14,) -> No
A66: 65 | B66: 18117102 | C66: 18117102 | D66: CONNECTOR TC-G1/8 | E66: 021 | F66: 13 | G66: STD BIOPROCESS CHROM HW | H66: 250 | I66: Std AKTApilot | J66: 203 | K66: 1,829 | M66: =VLOOKUP(B66,'[1]2018.7 '!A:C,3,) -> Active | N66: =VLOOKUP(B66,'[1]2018.7 '!A:M,13,) -> Ambient | O66: =VLOOKUP(B66,'[1]2018.7 '!A:N,14,) -> No
A67: 66 | B67: 18117106 | C67: 18117106 | D67: AKTAPILOT FILTERKIT SARTORIUS | E67: 021 | F67: 13 | G67: STD BIOPROCESS CHROM HW | H67: 250 | I67: Std AKTApilot | J67: =K67/9.009 -> 2,769 | K67: 24,946 | M67: =VLOOKUP(B67,'[1]2018.7 '!A:C,3,) -> Active | N67: =VLOOKUP(B67,'[1]2018.7 '!A:M,13,) -> Ambient | O67: =VLOOKUP(B67,'[1]2018.7 '!A:N,14,) -> No
A68: 67 | B68: 18460392 | C68: 18460392 | D68: TUBING CUTTER | E68: 021 | F68: 13 | G68: STD BIOPROCESS CHROM HW | H68: 250 | I68: Std AKTApilot | J68: 88 | K68: 793 | M68: =VLOOKUP(B68,'[1]2018.7 '!A:C,3,) -> Obsolete | N68: =VLOOKUP(B68,'[1]2018.7 '!A:M,13,) ->  | O68: =VLOOKUP(B68,'[1]2018.7 '!A:N,14,) -> 
A69: 68 | B69: 18465201 | C69: 18465201 | D69: TUBING CONNECTORS 2.7 | E69: 021 | F69: 13 | G69: STD BIOPROCESS CHROM HW | H69: 250 | I69: Std AKTApilot | J69: 126 | K69: 1,135 | M69: =VLOOKUP(B69,'[1]2018.7 '!A:C,3,) -> Active | N69: =VLOOKUP(B69,'[1]2018.7 '!A:M,13,) -> Ambient | O69: =VLOOKUP(B69,'[1]2018.7 '!A:N,14,) -> No
A70: 69 | B70: 18469901 | C70: 18469901 | D70: GLASS CYLINDER | E70: 021 | F70: 13 | G70: STD BIOPROCESS CHROM HW | H70: 250 | I70: Std AKTApilot | J70: 230 | K70: 2,072 | M70: =VLOOKUP(B70,'[1]2018.7 '!A:C,3,) -> Active | N70: =VLOOKUP(B70,'[1]2018.7 '!A:M,13,) -> Ambient | O70: =VLOOKUP(B70,'[1]2018.7 '!A:N,14,) -> No
A71: 70 | B71: 18580801 | C71: 18580801 | D71: O-RING 11.3X2.4, KALREZ | E71: 021 | F71: 13 | G71: STD BIOPROCESS CHROM HW | H71: 250 | I71: Std AKTApilot | J71: 245 | K71: 2,207 | M71: =VLOOKUP(B71,'[1]2018.7 '!A:C,3,) -> Active | N71: =VLOOKUP(B71,'[1]2018.7 '!A:M,13,) -> Ambient | O71: =VLOOKUP(B71,'[1]2018.7 '!A:N,14,) -> Reviewing
A72: 71 | B72: 18820702 | C72: 18820702 | D72: TUBING 1.9/2.7, PTFE 7X4 M | E72: 021 | F72: 13 | G72: STD BIOPROCESS CHROM HW | H72: 250 | I72: Std AKTApilot | J72: 315 | K72: 2,838 | M72: =VLOOKUP(B72,'[1]2018.7 '!A:C,3,) -> Active | N72: =VLOOKUP(B72,'[1]2018.7 '!A:M,13,) -> Ambient | O72: =VLOOKUP(B72,'[1]2018.7 '!A:N,14,) -> No
A73: 72 | B73: 18820703 | C73: 18820703 | D73: TUBING S-FLANGED I.D 1.9 MM X 1 M | E73: 021 | F73: 13 | G73: STD BIOPROCESS CHROM HW | H73: 250 | I73: Std AKTApilot | J73: 56 | K73: 505 | M73: =VLOOKUP(B73,'[1]2018.7 '!A:C,3,) -> Active | N73: =VLOOKUP(B73,'[1]2018.7 '!A:M,13,) -> Ambient | O73: =VLOOKUP(B73,'[1]2018.7 '!A:N,14,) -> Reviewing
A74: 73 | B74: 19437002 | C74: 19437002 | D74: TUBING 1,2 1,8, ETFE, 10X5M | E74: 021 | F74: 13 | G74: STD BIOPROCESS CHROM HW | H74: 250 | I74: Std AKTApilot | J74: 606 | K74: 5,459 | M74: =VLOOKUP(B74,'[1]2018.7 '!A:C,3,) -> Active | N74: =VLOOKUP(B74,'[1]2018.7 '!A:M,13,) -> Ambient | O74: =VLOOKUP(B74,'[1]2018.7 '!A:N,14,) -> No
A75: 74 | B75: 19451002 | C75: 19451002 | D75: INDUSTRIAL FLOW CELL 1/4in | E75: 021 | F75: 13 | G75: STD BIOPROCESS CHROM HW | H75: 250 | I75: Std AKTApilot | J75: 1,534 | K75: 13,820 | M75: =VLOOKUP(B75,'[1]2018.7 '!A:C,3,) -> Sales Stop | N75: =VLOOKUP(B75,'[1]2018.7 '!A:M,13,) -> Ambient | O75: =VLOOKUP(B75,'[1]2018.7 '!A:N,14,) -> reviewing
A76: 75 | B76: 19938601 | C76: 19938601 | D76: FUSE 3.15 A SB 5X20 | E76: 021 | F76: 13 | G76: STD BIOPROCESS CHROM HW | H76: 250 | I76: Std AKTApilot | J76: 35 | K76: 315 | M76: =VLOOKUP(B76,'[1]2018.7 '!A:C,3,) -> Active | N76: =VLOOKUP(B76,'[1]2018.7 '!A:M,13,) -> Ambient | O76: =VLOOKUP(B76,'[1]2018.7 '!A:N,14,) -> Reviewing
A77: 76 | B77: 28400903 | C77: 28400903 | D77: CIP MANIFOLD CPL | E77: 021 | F77: 13 | G77: STD BIOPROCESS CHROM HW | H77: 250 | I77: Std AKTApilot | J77: 5,426 | K77: 48,883 | M77: =VLOOKUP(B77,'[1]2018.7 '!A:C,3,) -> Active | N77: =VLOOKUP(B77,'[1]2018.7 '!A:M,13,) -> Ambient | O77: =VLOOKUP(B77,'[1]2018.7 '!A:N,14,) -> No
A78: 77 | B78: 28407972 | C78: 28407972 | D78: EVB RACK CPL | E78: 021 | F78: 13 | G78: STD BIOPROCESS CHROM HW | H78: 250 | I78: Std AKTApilot | J78: 3,633 | K78: 32,730 | M78: =VLOOKUP(B78,'[1]2018.7 '!A:C,3,) -> Active | N78: =VLOOKUP(B78,'[1]2018.7 '!A:M,13,) -> Ambient | O78: =VLOOKUP(B78,'[1]2018.7 '!A:N,14,) -> No
A79: 78 | B79: 28407975 | C79: 28407975 | D79: EVB 981 | E79: 021 | F79: 13 | G79: STD BIOPROCESS CHROM HW | H79: 250 | I79: Std AKTApilot | J79: 6,531 | K79: 58,838 | M79: =VLOOKUP(B79,'[1]2018.7 '!A:C,3,) -> Active | N79: =VLOOKUP(B79,'[1]2018.7 '!A:M,13,) -> Ambient | O79: =VLOOKUP(B79,'[1]2018.7 '!A:N,14,) -> No
A80: 79 | B80: 28407978 | C80: 28407978 | D80: EVB 988 | E80: 021 | F80: 13 | G80: STD BIOPROCESS CHROM HW | H80: 250 | I80: Std AKTApilot | J80: 5,314 | K80: 47,874 | M80: =VLOOKUP(B80,'[1]2018.7 '!A:C,3,) -> Active | N80: =VLOOKUP(B80,'[1]2018.7 '!A:M,13,) -> Ambient | O80: =VLOOKUP(B80,'[1]2018.7 '!A:N,14,) -> No
A81: 80 | B81: 28903222 | C81: 28903222 | D81: AKTAPILOT TUBE S14 CPL | E81: 021 | F81: 13 | G81: STD BIOPROCESS CHROM HW | H81: 250 | I81: Std AKTApilot | J81: 310 | K81: 2,793 | M81: =VLOOKUP(B81,'[1]2018.7 '!A:C,3,) -> Active | N81: =VLOOKUP(B81,'[1]2018.7 '!A:M,13,) -> Ambient | O81: =VLOOKUP(B81,'[1]2018.7 '!A:N,14,) -> No
A82: 81 | B82: 28907058 | C82: 28907058 | D82: Elektrodhus pH | E82: 021 | F82: 13 | G82: STD BIOPROCESS CHROM HW | H82: 250 | I82: Std AKTApilot | J82: 489 | K82: 4,405 | M82: =VLOOKUP(B82,'[1]2018.7 '!A:C,3,) -> Active | N82: =VLOOKUP(B82,'[1]2018.7 '!A:M,13,) -> Ambient | O82: =VLOOKUP(B82,'[1]2018.7 '!A:N,14,) -> Reviewing
A83: 82 | B83: 28989522 | C83: 28989522 | D83: AKTApilot | E83: 021 | F83: 13 | G83: STD BIOPROCESS CHROM HW | H83: 250 | I83: Std AKTApilot | J83: 询价 | K83: 询价 | M83: =VLOOKUP(B83,'[1]2018.7 '!A:C,3,) -> Active | N83: =VLOOKUP(B83,'[1]2018.7 '!A:M,13,) -> Ambient | O83: =VLOOKUP(B83,'[1]2018.7 '!A:N,14,) -> Reviewing
A84: 83 | B84: 28998515 | C84: 28998515 | D84: AKTAPILOT W/CONTROL | E84: 021 | F84: 13 | G84: STD BIOPROCESS CHROM HW | H84: 250 | I84: Std AKTApilot | J84: 询价 | K84: 询价 | M84: =VLOOKUP(B84,'[1]2018.7 '!A:C,3,) -> Active | N84: =VLOOKUP(B84,'[1]2018.7 '!A:M,13,) -> Ambient | O84: =VLOOKUP(B84,'[1]2018.7 '!A:N,14,) -> Reviewing
A85: 84 | B85: 28998554 | C85: 28998554 | D85: AKTAPILOT ACCESSORY START KIT | E85: 021 | F85: 13 | G85: STD BIOPROCESS CHROM HW | H85: 250 | I85: Std AKTApilot | J85: 询价 | K85: 询价 | M85: =VLOOKUP(B85,'[1]2018.7 '!A:C,3,) -> Active | N85: =VLOOKUP(B85,'[1]2018.7 '!A:M,13,) -> Ambient | O85: =VLOOKUP(B85,'[1]2018.7 '!A:N,14,) -> No
A86: 85 | B86: 28998916 | C86: 28998916 | D86: NA-AKTApilot | E86: 021 | F86: 13 | G86: STD BIOPROCESS CHROM HW | H86: 250 | I86: Std AKTApilot | J86: 询价 | K86: 询价 | M86: =VLOOKUP(B86,'[1]2018.7 '!A:C,3,) -> Active | N86: =VLOOKUP(B86,'[1]2018.7 '!A:M,13,) -> Reviewing | O86: =VLOOKUP(B86,'[1]2018.7 '!A:N,14,) -> Reviewing
A87: 86 | B87: 29013905 | C87: 29013905 | D87: Rupture Disc Hanger AKTA Pilot | E87: 021 | F87: 13 | G87: STD BIOPROCESS CHROM HW | H87: 250 | I87: Std AKTApilot | J87: 416 | K87: 3,748 | M87: =VLOOKUP(B87,'[1]2018.7 '!A:C,3,) -> Active | N87: =VLOOKUP(B87,'[1]2018.7 '!A:M,13,) -> Ambient | O87: =VLOOKUP(B87,'[1]2018.7 '!A:N,14,) -> Reviewing
A88: 87 | B88: 29031217 | C88: 29031217 | D88: AKTAPILOT WETTED PARTS KIT | E88: 021 | F88: 13 | G88: STD BIOPROCESS CHROM HW | H88: 250 | I88: Std AKTApilot | J88: 43,891 | K88: 395,414 | M88: =VLOOKUP(B88,'[1]2018.7 '!A:C,3,) -> Active | N88: =VLOOKUP(B88,'[1]2018.7 '!A:M,13,) -> Ambient | O88: =VLOOKUP(B88,'[1]2018.7 '!A:N,14,) -> No
A89: 88 | B89: 29031719 | C89: 29031719 | D89: Rent Akta Pilot w.Col Axich100 | E89: 021 | F89: 13 | G89: STD BIOPROCESS CHROM HW | H89: 250 | I89: Std AKTApilot | J89: 询价 | K89: 询价 | M89: =VLOOKUP(B89,'[1]2018.7 '!A:C,3,) -> Active | N89: =VLOOKUP(B89,'[1]2018.7 '!A:M,13,) -> Ambient | O89: =VLOOKUP(B89,'[1]2018.7 '!A:N,14,) -> Reviewing
A90: 89 | B90: 72XX0336 | C90: 29109360 | D90: PC RACK | E90: 021 | F90: 13 | G90: STD BIOPROCESS CHROM HW | H90: 250 | I90: Std AKTApilot | J90: 询价 | K90: 询价 | M90: =VLOOKUP(B90,'[1]2018.7 '!A:C,3,) -> Active | N90: =VLOOKUP(B90,'[1]2018.7 '!A:M,13,) -> Ambient | O90: =VLOOKUP(B90,'[1]2018.7 '!A:N,14,) -> Reviewing
A91: 90 | B91: 80590250 | C91: 80590250 | D91: Domestic Std ChrSys Apilot | E91: 021 | F91: 13 | G91: STD BIOPROCESS CHROM HW | H91: 250 | I91: Std AKTApilot | J91: 询价 | K91: 询价 | M91: =VLOOKUP(B91,'[1]2018.7 '!A:C,3,) -> Active | N91: =VLOOKUP(B91,'[1]2018.7 '!A:M,13,) -> Dry Ice | O91: =VLOOKUP(B91,'[1]2018.7 '!A:N,14,) -> Reviewing
A92: 91 | B92: 18000542 | C92: 18000542 | D92: Tubing L=300mm, TC25mm, ID 1/4" | E92: 021 | F92: 13 | G92: STD BIOPROCESS CHROM HW | H92: 254 | I92: Std BPG | J92: 323 | K92: 2,910 | M92: =VLOOKUP(B92,'[1]2018.7 '!A:C,3,) -> Active | N92: =VLOOKUP(B92,'[1]2018.7 '!A:M,13,) -> Ambient | O92: =VLOOKUP(B92,'[1]2018.7 '!A:N,14,) -> No
A93: 92 | B93: 18000543 | C93: 18000543 | D93: Tubing L=750mm, TC25mm, ID 1/4" | E93: 021 | F93: 13 | G93: STD BIOPROCESS CHROM HW | H93: 254 | I93: Std BPG | J93: 342 | K93: 3,081 | M93: =VLOOKUP(B93,'[1]2018.7 '!A:C,3,) -> Active | N93: =VLOOKUP(B93,'[1]2018.7 '!A:M,13,) -> Ambient | O93: =VLOOKUP(B93,'[1]2018.7 '!A:N,14,) -> No
A94: 93 | B94: 18000544 | C94: 18000544 | D94: Tubing L=1250mm, TC25mm, ID 1/4" | E94: 021 | F94: 13 | G94: STD BIOPROCESS CHROM HW | H94: 254 | I94: Std BPG | J94: 349 | K94: 3,144 | M94: =VLOOKUP(B94,'[1]2018.7 '!A:C,3,) -> Active | N94: =VLOOKUP(B94,'[1]2018.7 '!A:M,13,) -> Ambient | O94: =VLOOKUP(B94,'[1]2018.7 '!A:N,14,) -> No
A95: 94 | B95: 18000545 | C95: 18000545 | D95: Tubing L=1500mm, TC25mm, ID 1/4" | E95: 021 | F95: 13 | G95: STD BIOPROCESS CHROM HW | H95: 254 | I95: Std BPG | J95: 359 | K95: 3,234 | M95: =VLOOKUP(B95,'[1]2018.7 '!A:C,3,) -> Active | N95: =VLOOKUP(B95,'[1]2018.7 '!A:M,13,) -> Ambient | O95: =VLOOKUP(B95,'[1]2018.7 '!A:N,14,) -> No
A96: 95 | B96: 18000547 | C96: 18000547 | D96: Tubing L=2000mm, TC25mm, ID 1/4" | E96: 021 | F96: 13 | G96: STD BIOPROCESS CHROM HW | H96: 254 | I96: Std BPG | J96: 406 | K96: 3,658 | M96: =VLOOKUP(B96,'[1]2018.7 '!A:C,3,) -> Active | N96: =VLOOKUP(B96,'[1]2018.7 '!A:M,13,) -> Ambient | O96: =VLOOKUP(B96,'[1]2018.7 '!A:N,14,) -> No
A97: 96 | B97: 18001959 | C97: 18001959 | D97: Air Trap BPG 100/200 | E97: 021 | F97: 13 | G97: STD BIOPROCESS CHROM HW | H97: 254 | I97: Std BPG | J97: 3,323 | K97: 29,937 | M97: =VLOOKUP(B97,'[1]2018.7 '!A:C,3,) -> Active | N97: =VLOOKUP(B97,'[1]2018.7 '!A:M,13,) -> Ambient | O97: =VLOOKUP(B97,'[1]2018.7 '!A:N,14,) -> No
A98: 97 | B98: 18020000 | C98: 18020000 | D98: TC-Gasket 25mm ID 12mm EPDM | E98: 021 | F98: 13 | G98: STD BIOPROCESS CHROM HW | H98: 254 | I98: Std BPG | J98: 29 | K98: 261 | M98: =VLOOKUP(B98,'[1]2018.7 '!A:C,3,) -> Active | N98: =VLOOKUP(B98,'[1]2018.7 '!A:M,13,) -> Ambient | O98: =VLOOKUP(B98,'[1]2018.7 '!A:N,14,) -> No
A99: 98 | B99: 18025137 | C99: 18025137 | D99: TORQUE WRENCH BPG COL. 2-20Nm | E99: 021 | F99: 13 | G99: STD BIOPROCESS CHROM HW | H99: 254 | I99: Std BPG | J99: 362 | K99: 3,261 | M99: =VLOOKUP(B99,'[1]2018.7 '!A:C,3,) -> Active | N99: =VLOOKUP(B99,'[1]2018.7 '!A:M,13,) -> Ambient | O99: =VLOOKUP(B99,'[1]2018.7 '!A:N,14,) -> No
A100: 99 | B100: 18025198 | C100: 18025198 | D100: Connector TC25mm Clamp-1/4in Threaded | E100: 021 | F100: 13 | G100: STD BIOPROCESS CHROM HW | H100: 254 | I100: Std BPG | J100: 192 | K100: 1,730 | M100: =VLOOKUP(B100,'[1]2018.7 '!A:C,3,) -> Active | N100: =VLOOKUP(B100,'[1]2018.7 '!A:M,13,) -> Ambient | O100: =VLOOKUP(B100,'[1]2018.7 '!A:N,14,) -> No
A101: 100 | B101: 18100002 | C101: 18100002 | D101: INNER ADJUSTING TUBE | E101: 021 | F101: 13 | G101: STD BIOPROCESS CHROM HW | H101: 254 | I101: Std BPG | J101: 82 | K101: 739 | M101: =VLOOKUP(B101,'[1]2018.7 '!A:C,3,) -> Active | N101: =VLOOKUP(B101,'[1]2018.7 '!A:M,13,) -> Ambient | O101: =VLOOKUP(B101,'[1]2018.7 '!A:N,14,) -> No
A102: 101 | B102: 18100004 | C102: 18100004 | D102: ADJUSTING INNER ROD | E102: 021 | F102: 13 | G102: STD BIOPROCESS CHROM HW | H102: 254 | I102: Std BPG | J102: 85 | K102: 766 | M102: =VLOOKUP(B102,'[1]2018.7 '!A:C,3,) -> Active | N102: =VLOOKUP(B102,'[1]2018.7 '!A:M,13,) -> Ambient | O102: =VLOOKUP(B102,'[1]2018.7 '!A:N,14,) -> No
A103: 102 | B103: 18100069 | C103: 18100069 | D103: NET RING | E103: 021 | F103: 13 | G103: STD BIOPROCESS CHROM HW | H103: 254 | I103: Std BPG | J103: 94 | K103: 847 | M103: =VLOOKUP(B103,'[1]2018.7 '!A:C,3,) -> Active | N103: =VLOOKUP(B103,'[1]2018.7 '!A:M,13,) -> Ambient | O103: =VLOOKUP(B103,'[1]2018.7 '!A:N,14,) -> No
A104: 103 | B104: 18100125 | C104: 18100125 | D104: Blind Flange Incl. TC-Gasket 25mm | E104: 021 | F104: 13 | G104: STD BIOPROCESS CHROM HW | H104: 254 | I104: Std BPG | J104: 74 | K104: 667 | M104: =VLOOKUP(B104,'[1]2018.7 '!A:C,3,) -> Active | N104: =VLOOKUP(B104,'[1]2018.7 '!A:M,13,) -> Ambient | O104: =VLOOKUP(B104,'[1]2018.7 '!A:N,14,) -> No
A105: 104 | B105: 18100363 | C105: 18100363 | D105: T-Junction TC25/TC50mm ID 10mm | E105: 021 | F105: 13 | G105: STD BIOPROCESS CHROM HW | H105: 254 | I105: Std BPG | J105: 456 | K105: 4,108 | M105: =VLOOKUP(B105,'[1]2018.7 '!A:C,3,) -> Active | N105: =VLOOKUP(B105,'[1]2018.7 '!A:M,13,) -> Ambient | O105: =VLOOKUP(B105,'[1]2018.7 '!A:N,14,) -> No
A106: 105 | B106: 18101257 | C106: 18101257 | D106: VALVE 4-PORT,4-WAY,ID 10MM | E106: 021 | F106: 13 | G106: STD BIOPROCESS CHROM HW | H106: 254 | I106: Std BPG | J106: 2,016 | K106: 18,162 | M106: =VLOOKUP(B106,'[1]2018.7 '!A:C,3,) -> Active | N106: =VLOOKUP(B106,'[1]2018.7 '!A:M,13,) -> Ambient | O106: =VLOOKUP(B106,'[1]2018.7 '!A:N,14,) -> No
A107: 106 | B107: 18101262 | C107: 18101262 | D107: Tubing L=900 MM, TC25mm, ID 3/8" | E107: 021 | F107: 13 | G107: STD BIOPROCESS CHROM HW | H107: 254 | I107: Std BPG | J107: 339 | K107: 3,054 | M107: =VLOOKUP(B107,'[1]2018.7 '!A:C,3,) -> Active | N107: =VLOOKUP(B107,'[1]2018.7 '!A:M,13,) -> Ambient | O107: =VLOOKUP(B107,'[1]2018.7 '!A:N,14,) -> No
A108: 107 | B108: 18101263 | C108: 18101263 | D108: Tubing L=1400mm, TC25mm, ID 3/8" | E108: 021 | F108: 13 | G108: STD BIOPROCESS CHROM HW | H108: 254 | I108: Std BPG | J108: 353 | K108: 3,180 | M108: =VLOOKUP(B108,'[1]2018.7 '!A:C,3,) -> Active | N108: =VLOOKUP(B108,'[1]2018.7 '!A:M,13,) -> Ambient | O108: =VLOOKUP(B108,'[1]2018.7 '!A:N,14,) -> No
A109: 108 | B109: 18101264 | C109: 18101264 | D109: Tubing L=1700mm, TC25mm, ID 3/8" | E109: 021 | F109: 13 | G109: STD BIOPROCESS CHROM HW | H109: 254 | I109: Std BPG | J109: 382 | K109: 3,441 | M109: =VLOOKUP(B109,'[1]2018.7 '!A:C,3,) -> Active | N109: =VLOOKUP(B109,'[1]2018.7 '!A:M,13,) -> Ambient | O109: =VLOOKUP(B109,'[1]2018.7 '!A:N,14,) -> No
A110: 109 | B110: 18101267 | C110: 18101267 | D110: Connector TC25mm Clamp-6mm 1/2in Th | E110: 021 | F110: 13 | G110: STD BIOPROCESS CHROM HW | H110: 254 | I110: Std BPG | J110: 165 | K110: 1,486 | M110: =VLOOKUP(B110,'[1]2018.7 '!A:C,3,) -> Active | N110: =VLOOKUP(B110,'[1]2018.7 '!A:M,13,) -> Ambient | O110: =VLOOKUP(B110,'[1]2018.7 '!A:N,14,) -> No
A111: 110 | B111: 18101268 | C111: 18101268 | D111: Connector TC25mm Clamp-10mm 1/2in Th | E111: 021 | F111: 13 | G111: STD BIOPROCESS CHROM HW | H111: 254 | I111: Std BPG | J111: 354 | K111: 3,189 | M111: =VLOOKUP(B111,'[1]2018.7 '!A:C,3,) -> Active | N111: =VLOOKUP(B111,'[1]2018.7 '!A:M,13,) -> Ambient | O111: =VLOOKUP(B111,'[1]2018.7 '!A:N,14,) -> No
A112: 111 | B112: 18101269 | C112: 18101269 | D112: Connector TC25mm Clamp/ TC51mm | E112: 021 | F112: 13 | G112: STD BIOPROCESS CHROM HW | H112: 254 | I112: Std BPG | J112: 302 | K112: 2,721 | M112: =VLOOKUP(B112,'[1]2018.7 '!A:C,3,) -> Active | N112: =VLOOKUP(B112,'[1]2018.7 '!A:M,13,) -> Ambient | O112: =VLOOKUP(B112,'[1]2018.7 '!A:N,14,) -> No
A113: 112 | B113: 18101285 | C113: 18101285 | D113: Tubing L=300mm, TC25mm, ID 3/8" | E113: 021 | F113: 13 | G113: STD BIOPROCESS CHROM HW | H113: 254 | I113: Std BPG | J113: 320 | K113: 2,883 | M113: =VLOOKUP(B113,'[1]2018.7 '!A:C,3,) -> Active | N113: =VLOOKUP(B113,'[1]2018.7 '!A:M,13,) -> Ambient | O113: =VLOOKUP(B113,'[1]2018.7 '!A:N,14,) -> No
A114: 113 | B114: 18101286 | C114: 18101286 | D114: Tubing L=400mm, TC25mm, ID 3/8" | E114: 021 | F114: 13 | G114: STD BIOPROCESS CHROM HW | H114: 254 | I114: Std BPG | J114: 329 | K114: 2,964 | M114: =VLOOKUP(B114,'[1]2018.7 '!A:C,3,) -> Active | N114: =VLOOKUP(B114,'[1]2018.7 '!A:M,13,) -> Ambient | O114: =VLOOKUP(B114,'[1]2018.7 '!A:N,14,) -> No
A115: 114 | B115: 18101287 | C115: 18101287 | D115: Tubing L=2000mm, TC25mm, ID 3/8" | E115: 021 | F115: 13 | G115: STD BIOPROCESS CHROM HW | H115: 254 | I115: Std BPG | J115: 436 | K115: 3,928 | M115: =VLOOKUP(B115,'[1]2018.7 '!A:C,3,) -> Active | N115: =VLOOKUP(B115,'[1]2018.7 '!A:M,13,) -> Ambient | O115: =VLOOKUP(B115,'[1]2018.7 '!A:N,14,) -> No
A116: 115 | B116: 18101288 | C116: 18101288 | D116: TC-Gasket 50mm ID 35mm EPDM | E116: 021 | F116: 13 | G116: STD BIOPROCESS CHROM HW | H116: 254 | I116: Std BPG | J116: 151 | K116: 1,360 | M116: =VLOOKUP(B116,'[1]2018.7 '!A:C,3,) -> Active | N116: =VLOOKUP(B116,'[1]2018.7 '!A:M,13,) -> Ambient | O116: =VLOOKUP(B116,'[1]2018.7 '!A:N,14,) -> No
A117: 116 | B117: 18102725 | C117: 18102725 | D117: Connector TC25 ID10/TC51 ID14 | E117: 021 | F117: 13 | G117: STD BIOPROCESS CHROM HW | H117: 254 | I117: Std BPG | J117: 330 | K117: 2,973 | M117: =VLOOKUP(B117,'[1]2018.7 '!A:C,3,) -> Active | N117: =VLOOKUP(B117,'[1]2018.7 '!A:M,13,) -> Ambient | O117: =VLOOKUP(B117,'[1]2018.7 '!A:N,14,) -> No
A118: 117 | B118: 18102726 | C118: 18102726 | D118: Connector TC50 ID14 / TC50 ID22 | E118: 021 | F118: 13 | G118: STD BIOPROCESS CHROM HW | H118: 254 | I118: Std BPG | J118: 359 | K118: 3,234 | M118: =VLOOKUP(B118,'[1]2018.7 '!A:C,3,) -> Active | N118: =VLOOKUP(B118,'[1]2018.7 '!A:M,13,) -> Ambient | O118: =VLOOKUP(B118,'[1]2018.7 '!A:N,14,) -> Reviewing
A119: 118 | B119: 18102728 | C119: 18102728 | D119: Tubing L=750mm, TC25mm, ID 1/2" | E119: 021 | F119: 13 | G119: STD BIOPROCESS CHROM HW | H119: 254 | I119: Std BPG | J119: 356 | K119: 3,207 | M119: =VLOOKUP(B119,'[1]2018.7 '!A:C,3,) -> Active | N119: =VLOOKUP(B119,'[1]2018.7 '!A:M,13,) -> Ambient | O119: =VLOOKUP(B119,'[1]2018.7 '!A:N,14,) -> No
A120: 119 | B120: 18102729 | C120: 18102729 | D120: Tubing L=1800mm, TC25mm, ID 1/2" | E120: 021 | F120: 13 | G120: STD BIOPROCESS CHROM HW | H120: 254 | I120: Std BPG | J120: 443 | K120: 3,991 | M120: =VLOOKUP(B120,'[1]2018.7 '!A:C,3,) -> Active | N120: =VLOOKUP(B120,'[1]2018.7 '!A:M,13,) -> Ambient | O120: =VLOOKUP(B120,'[1]2018.7 '!A:N,14,) -> No
A121: 120 | B121: 18103098 | C121: 18103098 | D121: ALLEN KEY BPG | E121: 021 | F121: 13 | G121: STD BIOPROCESS CHROM HW | H121: 254 | I121: Std BPG | J121: 30 | K121: 270 | M121: =VLOOKUP(B121,'[1]2018.7 '!A:C,3,) -> Active | N121: =VLOOKUP(B121,'[1]2018.7 '!A:M,13,) -> Ambient | O121: =VLOOKUP(B121,'[1]2018.7 '!A:N,14,) -> No
A122: 121 | B122: 18103103 | C122: 18103103 | D122: 12-POINT OPENING SOCKET BPG 100 | E122: 021 | F122: 13 | G122: STD BIOPROCESS CHROM HW | H122: 254 | I122: Std BPG | J122: 68 | K122: 613 | M122: =VLOOKUP(B122,'[1]2018.7 '!A:C,3,) -> Active | N122: =VLOOKUP(B122,'[1]2018.7 '!A:M,13,) -> Ambient | O122: =VLOOKUP(B122,'[1]2018.7 '!A:N,14,) -> No
A123: 122 | B123: 18103104 | C123: 18103104 | D123: 12-POINT OPENING SOCKET BPG | E123: 021 | F123: 13 | G123: STD BIOPROCESS CHROM HW | H123: 254 | I123: Std BPG | J123: 61 | K123: 550 | M123: =VLOOKUP(B123,'[1]2018.7 '!A:C,3,) -> Active | N123: =VLOOKUP(B123,'[1]2018.7 '!A:M,13,) -> Ambient | O123: =VLOOKUP(B123,'[1]2018.7 '!A:N,14,) -> No
A124: 123 | B124: 18103105 | C124: 18103105 | D124: 12-POINT OPENING SOCKET BPG 300 | E124: 021 | F124: 13 | G124: STD BIOPROCESS CHROM HW | H124: 254 | I124: Std BPG | J124: 68 | K124: 613 | M124: =VLOOKUP(B124,'[1]2018.7 '!A:C,3,) -> Active | N124: =VLOOKUP(B124,'[1]2018.7 '!A:M,13,) -> Ambient | O124: =VLOOKUP(B124,'[1]2018.7 '!A:N,14,) -> No
A125: 124 | B125: 18103107 | C125: 18103107 | D125: Manometer Kit 0-10 Bar | E125: 021 | F125: 13 | G125: STD BIOPROCESS CHROM HW | H125: 254 | I125: Std BPG | J125: 2,904 | K125: 26,162 | M125: =VLOOKUP(B125,'[1]2018.7 '!A:C,3,) -> Active | N125: =VLOOKUP(B125,'[1]2018.7 '!A:M,13,) -> Ambient | O125: =VLOOKUP(B125,'[1]2018.7 '!A:N,14,) -> No
A126: 125 | B126: 18103109 | C126: 18103109 | D126: Connector TC25mm Clamp-M6 | E126: 021 | F126: 13 | G126: STD BIOPROCESS CHROM HW | H126: 254 | I126: Std BPG | J126: 111 | K126: 1,000 | M126: =VLOOKUP(B126,'[1]2018.7 '!A:C,3,) -> Active | N126: =VLOOKUP(B126,'[1]2018.7 '!A:M,13,) -> Ambient | O126: =VLOOKUP(B126,'[1]2018.7 '!A:N,14,) -> No
A127: 126 | B127: 18103110 | C127: 18103110 | D127: Column Stand 100 Columns | E127: 021 | F127: 13 | G127: STD BIOPROCESS CHROM HW | H127: 254 | I127: Std BPG | J127: 1,071 | K127: 9,649 | M127: =VLOOKUP(B127,'[1]2018.7 '!A:C,3,) -> Active | N127: =VLOOKUP(B127,'[1]2018.7 '!A:M,13,) -> Ambient | O127: =VLOOKUP(B127,'[1]2018.7 '!A:N,14,) -> No
A128: 127 | B128: 18103120 | C128: 18103120 | D128: Column Stand 140/200 Columns | E128: 021 | F128: 13 | G128: STD BIOPROCESS CHROM HW | H128: 254 | I128: Std BPG | J128: 2,109 | K128: 19,000 | M128: =VLOOKUP(B128,'[1]2018.7 '!A:C,3,) -> Active | N128: =VLOOKUP(B128,'[1]2018.7 '!A:M,13,) -> Ambient | O128: =VLOOKUP(B128,'[1]2018.7 '!A:N,14,) -> No
A129: 128 | B129: 18103579 | C129: 18103579 | D129: TC-Gasket 25mm ID 10.5mm EPDM | E129: 021 | F129: 13 | G129: STD BIOPROCESS CHROM HW | H129: 254 | I129: Std BPG | J129: 30 | K129: 270 | M129: =VLOOKUP(B129,'[1]2018.7 '!A:C,3,) -> Active | N129: =VLOOKUP(B129,'[1]2018.7 '!A:M,13,) -> Ambient | O129: =VLOOKUP(B129,'[1]2018.7 '!A:N,14,) -> No
A130: 129 | B130: 18103580 | C130: 18103580 | D130: Safety Valve 8.0 Bar | E130: 021 | F130: 13 | G130: STD BIOPROCESS CHROM HW | H130: 254 | I130: Std BPG | J130: 3,099 | K130: 27,919 | M130: =VLOOKUP(B130,'[1]2018.7 '!A:C,3,) -> Active | N130: =VLOOKUP(B130,'[1]2018.7 '!A:M,13,) -> Ambient | O130: =VLOOKUP(B130,'[1]2018.7 '!A:N,14,) -> No
A131: 130 | B131: 18103581 | C131: 18103581 | D131: Safety Valve 6.0 Bar | E131: 021 | F131: 13 | G131: STD BIOPROCESS CHROM HW | H131: 254 | I131: Std BPG | J131: =K131/9.009 -> 3,099 | K131: 27,919 | M131: =VLOOKUP(B131,'[1]2018.7 '!A:C,3,) -> Active | N131: =VLOOKUP(B131,'[1]2018.7 '!A:M,13,) -> Ambient | O131: =VLOOKUP(B131,'[1]2018.7 '!A:N,14,) -> No
A132: 131 | B132: 18103582 | C132: 18103582 | D132: Safety Valve 4.0 Bar | E132: 021 | F132: 13 | G132: STD BIOPROCESS CHROM HW | H132: 254 | I132: Std BPG | J132: 2,946 | K132: 26,541 | M132: =VLOOKUP(B132,'[1]2018.7 '!A:C,3,) -> Active | N132: =VLOOKUP(B132,'[1]2018.7 '!A:M,13,) -> Ambient | O132: =VLOOKUP(B132,'[1]2018.7 '!A:N,14,) -> No
A133: 132 | B133: 18106031 | C133: 18106031 | D133: COLUMN AIR TRAP USER MANUAL | E133: 021 | F133: 13 | G133: STD BIOPROCESS CHROM HW | H133: 254 | I133: Std BPG | J133: 54 | K133: 486 | M133: =VLOOKUP(B133,'[1]2018.7 '!A:C,3,) -> Active | N133: =VLOOKUP(B133,'[1]2018.7 '!A:M,13,) -> Ambient | O133: =VLOOKUP(B133,'[1]2018.7 '!A:N,14,) -> Reviewing
A134: 133 | B134: 18110296 | C134: 18110296 | D134: Air Trap Complete BPG & INdEX 100 | E134: 021 | F134: 13 | G134: STD BIOPROCESS CHROM HW | H134: 254 | I134: Std BPG | J134: 7,793 | K134: 70,207 | M134: =VLOOKUP(B134,'[1]2018.7 '!A:C,3,) -> Active | N134: =VLOOKUP(B134,'[1]2018.7 '!A:M,13,) -> Ambient | O134: =VLOOKUP(B134,'[1]2018.7 '!A:N,14,) -> No
A135: 134 | B135: 18110297 | C135: 18110297 | D135: Air Trap Complete BPG & INdEX 200 | E135: 021 | F135: 13 | G135: STD BIOPROCESS CHROM HW | H135: 254 | I135: Std BPG | J135: 8,331 | K135: 75,054 | M135: =VLOOKUP(B135,'[1]2018.7 '!A:C,3,) -> Active | N135: =VLOOKUP(B135,'[1]2018.7 '!A:M,13,) -> Ambient | O135: =VLOOKUP(B135,'[1]2018.7 '!A:N,14,) -> No
A136: 135 | B136: 18110298 | C136: 18110298 | D136: Air Trap Complete BPG 300 | E136: 021 | F136: 13 | G136: STD BIOPROCESS CHROM HW | H136: 254 | I136: Std BPG | J136: 9,186 | K136: 82,757 | M136: =VLOOKUP(B136,'[1]2018.7 '!A:C,3,) -> Active | N136: =VLOOKUP(B136,'[1]2018.7 '!A:M,13,) -> Ambient | O136: =VLOOKUP(B136,'[1]2018.7 '!A:N,14,) -> No
A137: 136 | B137: 18110300 | C137: 18110300 | D137: Air Trap Complete BPG 450 | E137: 021 | F137: 13 | G137: STD BIOPROCESS CHROM HW | H137: 254 | I137: Std BPG | J137: 10,052 | K137: 90,558 | M137: =VLOOKUP(B137,'[1]2018.7 '!A:C,3,) -> Active | N137: =VLOOKUP(B137,'[1]2018.7 '!A:M,13,) -> Ambient | O137: =VLOOKUP(B137,'[1]2018.7 '!A:N,14,) -> No
A138: 137 | B138: 18110301 | C138: 18110301 | D138: BPG 100/500 | E138: 021 | F138: 13 | G138: STD BIOPROCESS CHROM HW | H138: 254 | I138: Std BPG | J138: 6,524 | K138: 58,775 | M138: =VLOOKUP(B138,'[1]2018.7 '!A:C,3,) -> Active | N138: =VLOOKUP(B138,'[1]2018.7 '!A:M,13,) -> Ambient | O138: =VLOOKUP(B138,'[1]2018.7 '!A:N,14,) -> No
A139: 138 | B139: 18110302 | C139: 18110302 | D139: BPG 100/750 | E139: 021 | F139: 13 | G139: STD BIOPROCESS CHROM HW | H139: 254 | I139: Std BPG | J139: 7,320 | K139: 65,946 | M139: =VLOOKUP(B139,'[1]2018.7 '!A:C,3,) -> Active | N139: =VLOOKUP(B139,'[1]2018.7 '!A:M,13,) -> Ambient | O139: =VLOOKUP(B139,'[1]2018.7 '!A:N,14,) -> No
A140: 139 | B140: 18110303 | C140: 18110303 | D140: BPG 100/950 | E140: 021 | F140: 13 | G140: STD BIOPROCESS CHROM HW | H140: 254 | I140: Std BPG | J140: 7,797 | K140: 70,243 | M140: =VLOOKUP(B140,'[1]2018.7 '!A:C,3,) -> Active | N140: =VLOOKUP(B140,'[1]2018.7 '!A:M,13,) -> Ambient | O140: =VLOOKUP(B140,'[1]2018.7 '!A:N,14,) -> No
A141: 140 | B141: 18110311 | C141: 18110311 | D141: BPG 200/500 | E141: 021 | F141: 13 | G141: STD BIOPROCESS CHROM HW | H141: 254 | I141: Std BPG | J141: 10,555 | K141: 95,090 | M141: =VLOOKUP(B141,'[1]2018.7 '!A:C,3,) -> Active | N141: =VLOOKUP(B141,'[1]2018.7 '!A:M,13,) -> Ambient | O141: =VLOOKUP(B141,'[1]2018.7 '!A:N,14,) -> No
A142: 141 | B142: 18110312 | C142: 18110312 | D142: BPG 200/750 | E142: 021 | F142: 13 | G142: STD BIOPROCESS CHROM HW | H142: 254 | I142: Std BPG | J142: 12,730 | K142: 114,685 | M142: =VLOOKUP(B142,'[1]2018.7 '!A:C,3,) -> Active | N142: =VLOOKUP(B142,'[1]2018.7 '!A:M,13,) -> Ambient | O142: =VLOOKUP(B142,'[1]2018.7 '!A:N,14,) -> No
A143: 142 | B143: 18110313 | C143: 18110313 | D143: BPG 200/950 | E143: 021 | F143: 13 | G143: STD BIOPROCESS CHROM HW | H143: 254 | I143: Std BPG | J143: 13,684 | K143: 123,279 | M143: =VLOOKUP(B143,'[1]2018.7 '!A:C,3,) -> Active | N143: =VLOOKUP(B143,'[1]2018.7 '!A:M,13,) -> Ambient | O143: =VLOOKUP(B143,'[1]2018.7 '!A:N,14,) -> No
A144: 143 | B144: 18110321 | C144: 18110321 | D144: BPG 300/500 | E144: 021 | F144: 13 | G144: STD BIOPROCESS CHROM HW | H144: 254 | I144: Std BPG | J144: 22,277 | K144: 200,693 | M144: =VLOOKUP(B144,'[1]2018.7 '!A:C,3,) -> Active | N144: =VLOOKUP(B144,'[1]2018.7 '!A:M,13,) -> Ambient | O144: =VLOOKUP(B144,'[1]2018.7 '!A:N,14,) -> No
A145: 144 | B145: 18110322 | C145: 18110322 | D145: BPG 300/750 | E145: 021 | F145: 13 | G145: STD BIOPROCESS CHROM HW | H145: 254 | I145: Std BPG | J145: 25,459 | K145: 229,360 | M145: =VLOOKUP(B145,'[1]2018.7 '!A:C,3,) -> Active | N145: =VLOOKUP(B145,'[1]2018.7 '!A:M,13,) -> Ambient | O145: =VLOOKUP(B145,'[1]2018.7 '!A:N,14,) -> No
A146: 145 | B146: 18110323 | C146: 18110323 | D146: BPG 300/950 | E146: 021 | F146: 13 | G146: STD BIOPROCESS CHROM HW | H146: 254 | I146: Std BPG | J146: 27,369 | K146: 246,567 | M146: =VLOOKUP(B146,'[1]2018.7 '!A:C,3,) -> Active | N146: =VLOOKUP(B146,'[1]2018.7 '!A:M,13,) -> Ambient | O146: =VLOOKUP(B146,'[1]2018.7 '!A:N,14,) -> No
A147: 146 | B147: 18110361 | C147: 18110361 | D147: STAND INDEX 140, 200 | E147: 021 | F147: 13 | G147: STD BIOPROCESS CHROM HW | H147: 234 | I147: Std Other | J147: 1,030 | K147: 9,279 | M147: =VLOOKUP(B147,'[1]2018.7 '!A:C,3,) -> Active | N147: =VLOOKUP(B147,'[1]2018.7 '!A:M,13,) -> Ambient | O147: =VLOOKUP(B147,'[1]2018.7 '!A:N,14,) -> No
A148: 147 | B148: 18110365 | C148: 18110365 | D148: Safety Valve 2.5 Bar | E148: 021 | F148: 13 | G148: STD BIOPROCESS CHROM HW | H148: 254 | I148: Std BPG | J148: 2,722 | K148: 24,522 | M148: =VLOOKUP(B148,'[1]2018.7 '!A:C,3,) -> Active | N148: =VLOOKUP(B148,'[1]2018.7 '!A:M,13,) -> Ambient | O148: =VLOOKUP(B148,'[1]2018.7 '!A:N,14,) -> No
A149: 148 | B149: 18110371 | C149: 18110371 | D149: BPG 450/500 | E149: 021 | F149: 13 | G149: STD BIOPROCESS CHROM HW | H149: 254 | I149: Std BPG | J149: 54,101 | K149: 487,396 | M149: =VLOOKUP(B149,'[1]2018.7 '!A:C,3,) -> Active | N149: =VLOOKUP(B149,'[1]2018.7 '!A:M,13,) -> Ambient | O149: =VLOOKUP(B149,'[1]2018.7 '!A:N,14,) -> No
A150: 149 | B150: 18110372 | C150: 18110372 | D150: BPG 450/750 | E150: 021 | F150: 13 | G150: STD BIOPROCESS CHROM HW | H150: 254 | I150: Std BPG | J150: 62,587 | K150: 563,846 | M150: =VLOOKUP(B150,'[1]2018.7 '!A:C,3,) -> Active | N150: =VLOOKUP(B150,'[1]2018.7 '!A:M,13,) -> Ambient | O150: =VLOOKUP(B150,'[1]2018.7 '!A:N,14,) -> No
A151: 150 | B151: 18110373 | C151: 18110373 | D151: BPG 450/1000 | E151: 021 | F151: 13 | G151: STD BIOPROCESS CHROM HW | H151: 254 | I151: Std BPG | J151: 64,921 | K151: 584,873 | M151: =VLOOKUP(B151,'[1]2018.7 '!A:C,3,) -> Active | N151: =VLOOKUP(B151,'[1]2018.7 '!A:M,13,) -> Ambient | O151: =VLOOKUP(B151,'[1]2018.7 '!A:N,14,) -> No
A152: 151 | B152: 18110402 | C152: 18110402 | D152: LID INDEX | E152: 021 | F152: 13 | G152: STD BIOPROCESS CHROM HW | H152: 254 | I152: Std BPG | J152: 376 | K152: 3,387 | M152: =VLOOKUP(B152,'[1]2018.7 '!A:C,3,) -> Active | N152: =VLOOKUP(B152,'[1]2018.7 '!A:M,13,) -> Ambient | O152: =VLOOKUP(B152,'[1]2018.7 '!A:N,14,) -> Reviewing
A153: 152 | B153: 18110415 | C153: 18110415 | D153: INDEX COLUMN 100/500 | E153: 021 | F153: 13 | G153: STD BIOPROCESS CHROM HW | H153: 234 | I153: Std Other | J153: 4,760 | K153: 42,883 | M153: =VLOOKUP(B153,'[1]2018.7 '!A:C,3,) -> Active | N153: =VLOOKUP(B153,'[1]2018.7 '!A:M,13,) -> Ambient | O153: =VLOOKUP(B153,'[1]2018.7 '!A:N,14,) -> No
A154: 153 | B154: 18110416 | C154: 18110416 | D154: INDEX COLUMN 100/950 | E154: 021 | F154: 13 | G154: STD BIOPROCESS CHROM HW | H154: 234 | I154: Std Other | J154: 5,401 | K154: 48,658 | M154: =VLOOKUP(B154,'[1]2018.7 '!A:C,3,) -> Active | N154: =VLOOKUP(B154,'[1]2018.7 '!A:M,13,) -> Ambient | O154: =VLOOKUP(B154,'[1]2018.7 '!A:N,14,) -> No
A155: 154 | B155: 18110417 | C155: 18110417 | D155: INDEX COLUMN 200/500 | E155: 021 | F155: 13 | G155: STD BIOPROCESS CHROM HW | H155: 234 | I155: Std Other | J155: 7,072 | K155: 63,712 | M155: =VLOOKUP(B155,'[1]2018.7 '!A:C,3,) -> Active | N155: =VLOOKUP(B155,'[1]2018.7 '!A:M,13,) -> Ambient | O155: =VLOOKUP(B155,'[1]2018.7 '!A:N,14,) -> No
A156: 155 | B156: 18110418 | C156: 18110418 | D156: INDEX COLUMN 200/950 | E156: 021 | F156: 13 | G156: STD BIOPROCESS CHROM HW | H156: 234 | I156: Std Other | J156: 10,152 | K156: 91,459 | M156: =VLOOKUP(B156,'[1]2018.7 '!A:C,3,) -> Active | N156: =VLOOKUP(B156,'[1]2018.7 '!A:M,13,) -> Ambient | O156: =VLOOKUP(B156,'[1]2018.7 '!A:N,14,) -> Reviewing
A157: 156 | B157: 18110422 | C157: 18110422 | D157: PACKING DEVICE INDEX 100 GLASS | E157: 021 | F157: 13 | G157: STD BIOPROCESS CHROM HW | H157: 234 | I157: Std Other | J157: 3,273 | K157: 29,486 | M157: =VLOOKUP(B157,'[1]2018.7 '!A:C,3,) -> Active | N157: =VLOOKUP(B157,'[1]2018.7 '!A:M,13,) -> Ambient | O157: =VLOOKUP(B157,'[1]2018.7 '!A:N,14,) -> Reviewing
A158: 157 | B158: 18110423 | C158: 18110423 | D158: PACKING DEVICE INDEX 200 GLASS | E158: 021 | F158: 13 | G158: STD BIOPROCESS CHROM HW | H158: 234 | I158: Std Other | J158: 5,307 | K158: 47,811 | M158: =VLOOKUP(B158,'[1]2018.7 '!A:C,3,) -> Active | N158: =VLOOKUP(B158,'[1]2018.7 '!A:M,13,) -> Ambient | O158: =VLOOKUP(B158,'[1]2018.7 '!A:N,14,) -> No
A159: 158 | B159: 18110429 | C159: 18110429 | D159: T-Junction TC25/TC50mm ID 6 mm | E159: 021 | F159: 13 | G159: STD BIOPROCESS CHROM HW | H159: 254 | I159: Std BPG | J159: 467 | K159: 4,207 | M159: =VLOOKUP(B159,'[1]2018.7 '!A:C,3,) -> Active | N159: =VLOOKUP(B159,'[1]2018.7 '!A:M,13,) -> Ambient | O159: =VLOOKUP(B159,'[1]2018.7 '!A:N,14,) -> No
A160: 159 | B160: 18110475 | C160: 18110475 | D160: Packing Device BPG 100 Glass | E160: 021 | F160: 13 | G160: STD BIOPROCESS CHROM HW | H160: 254 | I160: Std BPG | J160: 3,180 | K160: 28,649 | M160: =VLOOKUP(B160,'[1]2018.7 '!A:C,3,) -> Active | N160: =VLOOKUP(B160,'[1]2018.7 '!A:M,13,) -> Ambient | O160: =VLOOKUP(B160,'[1]2018.7 '!A:N,14,) -> No
A161: 160 | B161: 18110477 | C161: 18110477 | D161: Packing Device BPG 200 Glass | E161: 021 | F161: 13 | G161: STD BIOPROCESS CHROM HW | H161: 254 | I161: Std BPG | J161: 4,400 | K161: 39,640 | M161: =VLOOKUP(B161,'[1]2018.7 '!A:C,3,) -> Active | N161: =VLOOKUP(B161,'[1]2018.7 '!A:M,13,) -> Ambient | O161: =VLOOKUP(B161,'[1]2018.7 '!A:N,14,) -> No
A162: 161 | B162: 18110531 | C162: 18110531 | D162: 12-POINT OPENING SOCKET BPG 450 | E162: 021 | F162: 13 | G162: STD BIOPROCESS CHROM HW | H162: 254 | I162: Std BPG | J162: 75 | K162: 676 | M162: =VLOOKUP(B162,'[1]2018.7 '!A:C,3,) -> Active | N162: =VLOOKUP(B162,'[1]2018.7 '!A:M,13,) -> Ambient | O162: =VLOOKUP(B162,'[1]2018.7 '!A:N,14,) -> No
A163: 162 | B163: 18110532 | C163: 18110532 | D163: Packing Device BPG 450 | E163: 021 | F163: 13 | G163: STD BIOPROCESS CHROM HW | H163: 254 | I163: Std BPG | J163: 9,483 | K163: 85,432 | M163: =VLOOKUP(B163,'[1]2018.7 '!A:C,3,) -> Active | N163: =VLOOKUP(B163,'[1]2018.7 '!A:M,13,) -> Ambient | O163: =VLOOKUP(B163,'[1]2018.7 '!A:N,14,) -> No
A164: 163 | B164: 18110816 | C164: 18110816 | D164: Packing Device BPG 300 Glass | E164: 021 | F164: 13 | G164: STD BIOPROCESS CHROM HW | H164: 254 | I164: Std BPG | J164: 9,128 | K164: 82,234 | M164: =VLOOKUP(B164,'[1]2018.7 '!A:C,3,) -> Active | N164: =VLOOKUP(B164,'[1]2018.7 '!A:M,13,) -> Ambient | O164: =VLOOKUP(B164,'[1]2018.7 '!A:N,14,) -> No
A165: 164 | B165: 18110863 | C165: 18110863 | D165: LID KIT PACKING DEVICE INDEX 100 | E165: 021 | F165: 13 | G165: STD BIOPROCESS CHROM HW | H165: 234 | I165: Std Other | J165: 580 | K165: 5,225 | M165: =VLOOKUP(B165,'[1]2018.7 '!A:C,3,) -> Active | N165: =VLOOKUP(B165,'[1]2018.7 '!A:M,13,) -> Ambient | O165: =VLOOKUP(B165,'[1]2018.7 '!A:N,14,) -> Reviewing
A166: 165 | B166: 18110864 | C166: 18110864 | D166: LID KIT PACKING DEVICE INDEX 200 | E166: 021 | F166: 13 | G166: STD BIOPROCESS CHROM HW | H166: 234 | I166: Std Other | J166: 735 | K166: 6,622 | M166: =VLOOKUP(B166,'[1]2018.7 '!A:C,3,) -> Active | N166: =VLOOKUP(B166,'[1]2018.7 '!A:M,13,) -> Ambient | O166: =VLOOKUP(B166,'[1]2018.7 '!A:N,14,) -> Reviewing
A167: 166 | B167: 18111308 | C167: 18111308 | D167: BPG 140/500 | E167: 021 | F167: 13 | G167: STD BIOPROCESS CHROM HW | H167: 254 | I167: Std BPG | J167: 9,441 | K167: 85,054 | M167: =VLOOKUP(B167,'[1]2018.7 '!A:C,3,) -> Active | N167: =VLOOKUP(B167,'[1]2018.7 '!A:M,13,) -> Ambient | O167: =VLOOKUP(B167,'[1]2018.7 '!A:N,14,) -> No
A168: 167 | B168: 18111309 | C168: 18111309 | D168: BPG 140/950 | E168: 021 | F168: 13 | G168: STD BIOPROCESS CHROM HW | H168: 254 | I168: Std BPG | J168: 12,199 | K168: 109,901 | M168: =VLOOKUP(B168,'[1]2018.7 '!A:C,3,) -> Active | N168: =VLOOKUP(B168,'[1]2018.7 '!A:M,13,) -> Ambient | O168: =VLOOKUP(B168,'[1]2018.7 '!A:N,14,) -> No
A169: 168 | B169: 18111333 | C169: 18111333 | D169: Packing Device BPG 140 Glass | E169: 021 | F169: 13 | G169: STD BIOPROCESS CHROM HW | H169: 254 | I169: Std BPG | J169: 3,709 | K169: 33,414 | M169: =VLOOKUP(B169,'[1]2018.7 '!A:C,3,) -> Active | N169: =VLOOKUP(B169,'[1]2018.7 '!A:M,13,) -> Ambient | O169: =VLOOKUP(B169,'[1]2018.7 '!A:N,14,) -> No
A170: 169 | B170: 18111435 | C170: 18111435 | D170: PACKING DEVICE INDEX 70 | E170: 021 | F170: 13 | G170: STD BIOPROCESS CHROM HW | H170: 234 | I170: Std Other | J170: 2,823 | K170: 25,432 | M170: =VLOOKUP(B170,'[1]2018.7 '!A:C,3,) -> Active | N170: =VLOOKUP(B170,'[1]2018.7 '!A:M,13,) -> Ambient | O170: =VLOOKUP(B170,'[1]2018.7 '!A:N,14,) -> No
A171: 170 | B171: 18111436 | C171: 18111436 | D171: PACKING DEVICE INDEX 140 | E171: 021 | F171: 13 | G171: STD BIOPROCESS CHROM HW | H171: 234 | I171: Std Other | J171: 4,828 | K171: 43,495 | M171: =VLOOKUP(B171,'[1]2018.7 '!A:C,3,) -> Active | N171: =VLOOKUP(B171,'[1]2018.7 '!A:M,13,) -> Ambient | O171: =VLOOKUP(B171,'[1]2018.7 '!A:N,14,) -> No
A172: 171 | B172: 18111506 | C172: 18111506 | D172: INDEX COLUMN 70 500 | E172: 021 | F172: 13 | G172: STD BIOPROCESS CHROM HW | H172: 234 | I172: Std Other | J172: 4,248 | K172: 38,270 | M172: =VLOOKUP(B172,'[1]2018.7 '!A:C,3,) -> Active | N172: =VLOOKUP(B172,'[1]2018.7 '!A:M,13,) -> Ambient | O172: =VLOOKUP(B172,'[1]2018.7 '!A:N,14,) -> No
A173: 172 | B173: 18111507 | C173: 18111507 | D173: INDEX COLUMN 70/950 | E173: 021 | F173: 13 | G173: STD BIOPROCESS CHROM HW | H173: 234 | I173: Std Other | J173: 4,899 | K173: 44,135 | M173: =VLOOKUP(B173,'[1]2018.7 '!A:C,3,) -> Active | N173: =VLOOKUP(B173,'[1]2018.7 '!A:M,13,) -> Ambient | O173: =VLOOKUP(B173,'[1]2018.7 '!A:N,14,) -> No
A174: 173 | B174: 18111508 | C174: 18111508 | D174: INDEX COLUMN 140/500 | E174: 021 | F174: 13 | G174: STD BIOPROCESS CHROM HW | H174: 234 | I174: Std Other | J174: 6,624 | K174: 59,676 | M174: =VLOOKUP(B174,'[1]2018.7 '!A:C,3,) -> Active | N174: =VLOOKUP(B174,'[1]2018.7 '!A:M,13,) -> Ambient | O174: =VLOOKUP(B174,'[1]2018.7 '!A:N,14,) -> No
A175: 174 | B175: 18111509 | C175: 18111509 | D175: INDEX COLUMN 140/950 | E175: 021 | F175: 13 | G175: STD BIOPROCESS CHROM HW | H175: 234 | I175: Std Other | J175: 8,895 | K175: 80,135 | M175: =VLOOKUP(B175,'[1]2018.7 '!A:C,3,) -> Active | N175: =VLOOKUP(B175,'[1]2018.7 '!A:M,13,) -> Ambient | O175: =VLOOKUP(B175,'[1]2018.7 '!A:N,14,) -> No
A176: 175 | B176: 18111928 | C176: 18111928 | D176: Manometer Kit 0-6 Bar | E176: 021 | F176: 13 | G176: STD BIOPROCESS CHROM HW | H176: 254 | I176: Std BPG | J176: 1,998 | K176: 18,000 | M176: =VLOOKUP(B176,'[1]2018.7 '!A:C,3,) -> Active | N176: =VLOOKUP(B176,'[1]2018.7 '!A:M,13,) -> Ambient | O176: =VLOOKUP(B176,'[1]2018.7 '!A:N,14,) -> No
A177: 176 | B177: 18112144 | C177: 18112144 | D177: Top Valve for Air Traps | E177: 021 | F177: 13 | G177: STD BIOPROCESS CHROM HW | H177: 254 | I177: Std BPG | J177: 1,410 | K177: 12,703 | M177: =VLOOKUP(B177,'[1]2018.7 '!A:C,3,) -> Active | N177: =VLOOKUP(B177,'[1]2018.7 '!A:M,13,) -> Ambient | O177: =VLOOKUP(B177,'[1]2018.7 '!A:N,14,) -> No
A178: 177 | B178: 18112288 | C178: 18112288 | D178: UM FINELINE 100/100L, 200/200L | E178: 021 | F178: 13 | G178: STD BIOPROCESS CHROM HW | H178: 258 | I178: Std FineLINE | J178: 20 | K178: 180 | M178: =VLOOKUP(B178,'[1]2018.7 '!A:C,3,) -> Active | N178: =VLOOKUP(B178,'[1]2018.7 '!A:M,13,) -> Ambient | O178: =VLOOKUP(B178,'[1]2018.7 '!A:N,14,) -> Reviewing
A179: 178 | B179: 18112694 | C179: 18112694 | D179: ELUTRATING SEAL. RING STRL 100 | E179: 021 | F179: 13 | G179: STD BIOPROCESS CHROM HW | H179: 254 | I179: Std BPG | J179: 130 | K179: 1,171 | M179: =VLOOKUP(B179,'[1]2018.7 '!A:C,3,) -> Active | N179: =VLOOKUP(B179,'[1]2018.7 '!A:M,13,) -> Ambient | O179: =VLOOKUP(B179,'[1]2018.7 '!A:N,14,) -> Reviewing
A180: 179 | B180: 18112799 | C180: 18112799 | D180: END PIECE NET FINELINE 100 10M | E180: 021 | F180: 49 | G180: CBS | H180: 259 | I180: CBS Columns | J180: 1,762 | K180: 15,874 | M180: =VLOOKUP(B180,'[1]2018.7 '!A:C,3,) -> Active | N180: =VLOOKUP(B180,'[1]2018.7 '!A:M,13,) -> Ambient | O180: =VLOOKUP(B180,'[1]2018.7 '!A:N,14,) -> Reviewing
A181: 180 | B181: 18112800 | C181: 18112800 | D181: ADAPTOR NET FINELINE 100 10 MY | E181: 021 | F181: 49 | G181: CBS | H181: 259 | I181: CBS Columns | J181: 1,562 | K181: 14,072 | M181: =VLOOKUP(B181,'[1]2018.7 '!A:C,3,) -> Active | N181: =VLOOKUP(B181,'[1]2018.7 '!A:M,13,) -> Ambient | O181: =VLOOKUP(B181,'[1]2018.7 '!A:N,14,) -> Reviewing
A182: 181 | B182: 18114748 | C182: 18114748 | D182: Sealing Unit BPG 200 | E182: 021 | F182: 13 | G182: STD BIOPROCESS CHROM HW | H182: 254 | I182: Std BPG | J182: 998 | K182: 8,991 | M182: =VLOOKUP(B182,'[1]2018.7 '!A:C,3,) -> Active | N182: =VLOOKUP(B182,'[1]2018.7 '!A:M,13,) -> Ambient | O182: =VLOOKUP(B182,'[1]2018.7 '!A:N,14,) -> No
A183: 182 | B183: 18114749 | C183: 18114749 | D183: Sealing Unit BPG 300 | E183: 021 | F183: 13 | G183: STD BIOPROCESS CHROM HW | H183: 254 | I183: Std BPG | J183: 1,210 | K183: 10,901 | M183: =VLOOKUP(B183,'[1]2018.7 '!A:C,3,) -> Active | N183: =VLOOKUP(B183,'[1]2018.7 '!A:M,13,) -> Ambient | O183: =VLOOKUP(B183,'[1]2018.7 '!A:N,14,) -> Reviewing
A184: 183 | B184: 18117070 | C184: 18117070 | D184: BPG Columns INSTRUCTIONS FOR USE | E184: 021 | F184: 13 | G184: STD BIOPROCESS CHROM HW | H184: 254 | I184: Std BPG | J184: 18 | K184: 162 | M184: =VLOOKUP(B184,'[1]2018.7 '!A:C,3,) -> Active | N184: =VLOOKUP(B184,'[1]2018.7 '!A:M,13,) -> Ambient | O184: =VLOOKUP(B184,'[1]2018.7 '!A:N,14,) -> Reviewing
A185: 184 | B185: 18117193 | C185: 18117193 | D185: CHROM PIPING NOZZLE 800 3/4 | E185: 021 | F185: 13 | G185: STD BIOPROCESS CHROM HW | H185: 257 | I185: Std Chromaflow | J185: 2,850 | K185: 25,676 | M185: =VLOOKUP(B185,'[1]2018.7 '!A:C,3,) -> Active | N185: =VLOOKUP(B185,'[1]2018.7 '!A:M,13,) -> Ambient | O185: =VLOOKUP(B185,'[1]2018.7 '!A:N,14,) -> Reviewing
A186: 185 | B186: 18117200 | C186: 18117200 | D186: CHROMAFLOW NOZZLE PIP.400,3/4in | E186: 021 | F186: 13 | G186: STD BIOPROCESS CHROM HW | H186: 257 | I186: Std Chromaflow | J186: 2,850 | K186: 25,676 | M186: =VLOOKUP(B186,'[1]2018.7 '!A:C,3,) -> Active | N186: =VLOOKUP(B186,'[1]2018.7 '!A:M,13,) -> Ambient | O186: =VLOOKUP(B186,'[1]2018.7 '!A:N,14,) -> Reviewing
A187: 186 | B187: 18117201 | C187: 18117201 | D187: CHROMAFLOW NOZZLE PIP.400 1/2in | E187: 021 | F187: 13 | G187: STD BIOPROCESS CHROM HW | H187: 257 | I187: Std Chromaflow | J187: 2,850 | K187: 25,676 | M187: =VLOOKUP(B187,'[1]2018.7 '!A:C,3,) -> Active | N187: =VLOOKUP(B187,'[1]2018.7 '!A:M,13,) -> Ambient | O187: =VLOOKUP(B187,'[1]2018.7 '!A:N,14,) -> Reviewing
A188: 187 | B188: 18117204 | C188: 18117204 | D188: CHROM.NOZZLE PIPING 600 1in | E188: 021 | F188: 13 | G188: STD BIOPROCESS CHROM HW | H188: 257 | I188: Std Chromaflow | J188: 2,850 | K188: 25,676 | M188: =VLOOKUP(B188,'[1]2018.7 '!A:C,3,) -> Active | N188: =VLOOKUP(B188,'[1]2018.7 '!A:M,13,) -> Ambient | O188: =VLOOKUP(B188,'[1]2018.7 '!A:N,14,) -> No
A189: 188 | B189: 18117205 | C189: 18117205 | D189: CHROM NOZZLE PIPING 600 3/4 | E189: 021 | F189: 13 | G189: STD BIOPROCESS CHROM HW | H189: 257 | I189: Std Chromaflow | J189: 2,850 | K189: 25,676 | M189: =VLOOKUP(B189,'[1]2018.7 '!A:C,3,) -> Active | N189: =VLOOKUP(B189,'[1]2018.7 '!A:M,13,) -> Ambient | O189: =VLOOKUP(B189,'[1]2018.7 '!A:N,14,) -> Reviewing
A190: 189 | B190: 18117206 | C190: 18117206 | D190: CHROM NOZZLE PIPING 600 1/2 | E190: 021 | F190: 13 | G190: STD BIOPROCESS CHROM HW | H190: 257 | I190: Std Chromaflow | J190: 2,850 | K190: 25,676 | M190: =VLOOKUP(B190,'[1]2018.7 '!A:C,3,) -> Active | N190: =VLOOKUP(B190,'[1]2018.7 '!A:M,13,) -> Ambient | O190: =VLOOKUP(B190,'[1]2018.7 '!A:N,14,) -> Reviewing
A191: 190 | B191: 18117411 | C191: 18117411 | D191: CONNECTORTC50.5/ID22-TC25/ID10 | E191: 021 | F191: 13 | G191: STD BIOPROCESS CHROM HW | H191: 254 | I191: Std BPG | J191: 549 | K191: 4,946 | M191: =VLOOKUP(B191,'[1]2018.7 '!A:C,3,) -> Active | N191: =VLOOKUP(B191,'[1]2018.7 '!A:M,13,) -> Ambient | O191: =VLOOKUP(B191,'[1]2018.7 '!A:N,14,) -> No
A192: 191 | B192: 18117412 | C192: 18117412 | D192: CONNECTORTC50.5/ID22-TC25/ID14 | E192: 021 | F192: 13 | G192: STD BIOPROCESS CHROM HW | H192: 254 | I192: Std BPG | J192: 549 | K192: 4,946 | M192: =VLOOKUP(B192,'[1]2018.7 '!A:C,3,) -> Active | N192: =VLOOKUP(B192,'[1]2018.7 '!A:M,13,) -> Ambient | O192: =VLOOKUP(B192,'[1]2018.7 '!A:N,14,) -> No
A193: 192 | B193: 18575801 | C193: 18575801 | D193: VALVE 4-PORT 4-WAY ID 6 MM | E193: 021 | F193: 13 | G193: STD BIOPROCESS CHROM HW | H193: 254 | I193: Std BPG | J193: 1,808 | K193: 16,288 | M193: =VLOOKUP(B193,'[1]2018.7 '!A:C,3,) -> Active | N193: =VLOOKUP(B193,'[1]2018.7 '!A:M,13,) -> Ambient | O193: =VLOOKUP(B193,'[1]2018.7 '!A:N,14,) -> No
A194: 193 | B194: 18687901 | C194: 18687901 | D194: TUBING CONNECTOR (40-8-6) | E194: 021 | F194: 13 | G194: STD BIOPROCESS CHROM HW | H194: 254 | I194: Std BPG | J194: 103 | K194: 928 | M194: =VLOOKUP(B194,'[1]2018.7 '!A:C,3,) -> Active | N194: =VLOOKUP(B194,'[1]2018.7 '!A:M,13,) -> Ambient | O194: =VLOOKUP(B194,'[1]2018.7 '!A:N,14,) -> Reviewing
A195: 194 | B195: 19027101 | C195: 19027101 | D195: ANGLED CONNECTOR (40-4-2) | E195: 021 | F195: 13 | G195: STD BIOPROCESS CHROM HW | H195: 254 | I195: Std BPG | J195: =K195/9.009 -> 83 | K195: 748 | M195: =VLOOKUP(B195,'[1]2018.7 '!A:C,3,) -> Active | N195: =VLOOKUP(B195,'[1]2018.7 '!A:M,13,) -> Ambient | O195: =VLOOKUP(B195,'[1]2018.7 '!A:N,14,) -> Reviewing
A196: 195 | B196: 19027201 | C196: 19027201 | D196: ANGLED CONNECTOR (40-4-6) | E196: 021 | F196: 13 | G196: STD BIOPROCESS CHROM HW | H196: 254 | I196: Std BPG | J196: 89 | K196: 802 | M196: =VLOOKUP(B196,'[1]2018.7 '!A:C,3,) -> Active | N196: =VLOOKUP(B196,'[1]2018.7 '!A:M,13,) -> Ambient | O196: =VLOOKUP(B196,'[1]2018.7 '!A:N,14,) -> No
A197: 196 | B197: 19027301 | C197: 19027301 | D197: STRAIGHT CONNECTOR (10-4-2) | E197: 021 | F197: 13 | G197: STD BIOPROCESS CHROM HW | H197: 254 | I197: Std BPG | J197: 111 | K197: 1,000 | M197: =VLOOKUP(B197,'[1]2018.7 '!A:C,3,) -> Active | N197: =VLOOKUP(B197,'[1]2018.7 '!A:M,13,) -> Ambient | O197: =VLOOKUP(B197,'[1]2018.7 '!A:N,14,) -> Reviewing
A198: 197 | B198: 19029101 | C198: 19029101 | D198: O-RING | E198: 021 | F198: 13 | G198: STD BIOPROCESS CHROM HW | H198: 254 | I198: Std BPG | J198: 156 | K198: 1,405 | M198: =VLOOKUP(B198,'[1]2018.7 '!A:C,3,) -> Active | N198: =VLOOKUP(B198,'[1]2018.7 '!A:M,13,) -> Ambient | O198: =VLOOKUP(B198,'[1]2018.7 '!A:N,14,) -> No
A199: 198 | B199: 19029901 | C199: 19029901 | D199: POSITION PIN | E199: 021 | F199: 13 | G199: STD BIOPROCESS CHROM HW | H199: 254 | I199: Std BPG | J199: 95 | K199: 856 | M199: =VLOOKUP(B199,'[1]2018.7 '!A:C,3,) -> Active | N199: =VLOOKUP(B199,'[1]2018.7 '!A:M,13,) -> Ambient | O199: =VLOOKUP(B199,'[1]2018.7 '!A:N,14,) -> Reviewing
A200: 199 | B200: 19033601 | C200: 19033601 | D200: NUT SEGMENT | E200: 021 | F200: 13 | G200: STD BIOPROCESS CHROM HW | H200: 254 | I200: Std BPG | J200: 228 | K200: 2,054 | M200: =VLOOKUP(B200,'[1]2018.7 '!A:C,3,) -> Active | N200: =VLOOKUP(B200,'[1]2018.7 '!A:M,13,) -> Ambient | O200: =VLOOKUP(B200,'[1]2018.7 '!A:N,14,) -> Reviewing
... 4300 more rows
